Cogmind - Beta 16 @@@ ROGUE MODE // 2025.11.01 @ 20:56:58 Player: chebyrekser Result: Defending 0bPrime! Performance ------------- Evolutions (8) 4000 Regions Visited (26) 5200 Robots Destroyed (524) 2620 Value Destroyed (24878) 24878 Prototype IDs (164) 3280 Alien Tech Used (3) 600 Bonus (30996) 30996 TOTAL SCORE: 71574 Bonus ------- High Alert Combat Kills 15575 Registered with UFD 300 Met Optimus in HQ 500 Met Zhirov 300 Met Warlord at Base 500 MAIN.C Attacked Warlord 500 Scanned by Researcher 500 Met Optimus at Protoforge 1000 Completed Drillbomb Mission10000 Win 3000 Friendly Fire -1179 Cogmind --------- Core Integrity 634/1450 Matter 1050/1050 Energy 1520/1520 System Corruption 1% Temperature Cool (0) Movement Hovering (33) Location 0bPrime Parts ------- > --- POWER (2) -------- Hybrid Graviton Reactor Concept Zero-point Core > --- PROPULSION (8) --- Experimental Antigrav System Experimental Antigrav System Gravjet Array Concept Combat Aerolev Unit Concept Gyrokinetic System Concept Gyrokinetic System Concept Gyrokinetic System > --- UTILITY (11) ----- Concept Antigrav Storage Unit Concept NT7 Matterbank Experimental Optical Array Concept Weapon Articulator Experimental Core Analyzer Concept Reaction Jets Concept Phase Shift Module Medium Regenerative Plating Concept RG22 Armor Concept RG22 Armor Graphene Brace > --- WEAPON (3) ------- Concept Smart ZDS > --- INVENTORY (25) --- Concept Zero-point Core Gravjet Array Concept Chromion Battery (800) Concept NT7 Matterbank (750) Advanced Kinecellerator Experimental Reaction Control System Concept Phase Shift Module Experimental Cloaking Device Concept Core Shell Concept RG22 Armor Experimental EM Disruption Field Concept Antimissile System Concept Matter Streamer Concept Lightning Penetrator Concept Lightning Penetrator Concept Lightning Penetrator Concept Plasma Driver Concept XC Strikerail Concept XC Strikerail Concept XC Strikerail Concept Helical Railcannon Concept Helical Railcannon Concept Rapid Grenade Launcher Nanosword Peak State ------------ > --- POWER ------------ Hybrid Graviton Reactor Concept Zero-point Core > --- PROPULSION ------- Concept Biometal Exoskeleton Experimental Antigrav System Experimental Antigrav System Concept Combat Aerolev Unit Concept Gyrokinetic System Concept Gyrokinetic System Concept Gyrokinetic System > --- UTILITY ---------- Concept Antigrav Storage Unit Plexus Tether Experimental Optical Array Experimental Core Analyzer Concept Phase Shift Module Experimental Cloaking Device Concept Core Shell Medium Regenerative Plating Concept RG22 Armor Concept RG22 Armor Graphene Brace > --- WEAPON ----------- Concept Lightning Penetrator Concept Lightning Penetrator Concept XC Strikerail > --- INVENTORY -------- Concept Zero-point Core Concept Chromion Battery Concept NT7 Matterbank Concept NT7 Matterbank Experimental Active Sensor Suite Experimental Reaction Control System Concept Reaction Jets Concept Phase Shift Module Centrium Heavy Armor Plating Concept RG22 Armor Experimental EM Disruption Field Concept Antimissile System Concept Matter Streamer Crosscalibrator Concept Lightning Penetrator Concept Plasma Driver Concept XC Strikerail Concept XC Strikerail Concept Helical Railcannon Concept Helical Railcannon Concept Rapid Grenade Launcher Concept Smart ZDS Nanosword [Rating: 300] Favorites ----------- Power Reinforced Deuterium Engine Engine Reinforced Deuterium Engine Power Core Concept Zero-point Core Reactor Micro Antimatter Reactor Propulsion Improved Cesium-ion Thruster Treads Light Treads Leg Experimental VSS Leg Wheel Armored Wheel Hover Unit Concept Gyrokinetic System Flight Unit Improved Cesium-ion Thruster Utility Huge Storage Unit Device Seismic Detector Storage Huge Storage Unit Processor Experimental Core Analyzer Hackware Advanced Hacking Suite Protection Hardened Light Armor Plating Weapon Concept XC Strikerail Energy Gun Medium Laser Energy Cannon Heavy Particle Cannon Ballistic Gun Concept XC Strikerail Ballistic Cannon Gauss Cannon Launcher Smartbomb Launcher Special Weapon Remote Datajack Impact Weapon Makeshift Hammer Slashing Weapon Makeshift Sword Build | -11 -10 -10 -9 -9 -8 -7 -7 -7 -7 -5 -5 -5 -5 -4 -4 -4 -4 -4 -4 -4 -3 -3 -3 -2 -2 -2 ------- Run | Yrd Mat Min Mat Min Mat Fac Sto Rec Scr Fac Upp Upp War Pro Fac Was Fac Upp Upp Zhi Pro Res Tes Res Qua Frg Slots Evolved 16 | . . . 2 . 2 2 . . . 4 . . . . 2 . . . . . . 2 . 2 . . Power 1 | . . . . . . . . . . 1 . . . . . . . . . . . . . . . . Propulsion 6 | . . . 1 . 1 2 . . . 1 . . . . 1 . . . . . . . . . . . Utility 8 | . . . 1 . 1 . . . . 2 . . . . 1 . . . . . . 2 . 1 . . Weapon 1 | . . . . . . . . . . . . . . . . . . . . . . . . 1 . . Parts Attached 254 | 8 8 1 33 3 28 17 2 1 3 9 . . 9 . 4 . 6 . 3 4 3 3 9 5 10 85 Power 27 | 2 . . 3 1 2 . 1 1 . 1 . . 2 . . . 1 . . 1 1 . . 3 2 6 Engine 9 | 2 . . 3 1 1 . . . . . . . 1 . . . . . . . . . . 1 . . Core 9 | . . . . . 1 . 1 1 . 1 . . . . . . 1 . . . 1 . . 1 . 2 Reactor 9 | . . . . . . . . . . . . . 1 . . . . . . 1 . . . 1 2 4 Propulsion 74 | 2 2 . 10 1 14 11 . . . 1 . . 3 . 1 . 2 . . . . . 1 . 1 25 Treads 20 | 1 1 . 8 1 9 . . . . . . . . . . . . . . . . . . . . . Leg 7 | . . . . . 1 . . . . . . . . . . . . . . . . . . . . 6 Wheel 8 | 1 1 . 2 . 4 . . . . . . . . . . . . . . . . . . . . . Hover 8 | . . . . . . . . . . . . . . . . . . . . . . . . . . 8 Flight 31 | . . . . . . 11 . . . 1 . . 3 . 1 . 2 . . . . . 1 . 1 11 Utility 86 | 2 3 . 9 . 5 2 1 . . 6 . . 2 . 3 . 2 . 1 3 2 3 4 . 5 33 Device 43 | 1 . . 4 . 3 . . . . 2 . . 2 . 1 . . . 1 1 1 2 . . 4 21 Storage 6 | 1 2 . . . . . . . . . . . . . . . . . . 1 . . . . . 2 Processor 9 | . . . . . 1 1 . . . . . . . . 1 . . . . . 1 . . . . 5 Hackware 9 | . . . . . . 1 . . . 2 . . . . 1 . 1 . . 1 . 1 1 . 1 . Protection 19 | . 1 . 5 . 1 . 1 . . 2 . . . . . . 1 . . . . . 3 . . 5 Artifact . | . . . . . . . . . . . . . . . . . . . . . . . . . . . Weapon 67 | 2 3 1 11 1 7 4 . . 3 1 . . 2 . . . 1 . 2 . . . 4 2 2 21 Energy Gun 9 | 2 . . 3 . . . . . . . . . . . . . . . . . . . 1 . . 3 Energy Cannon 10 | . . . 1 . 2 1 . . . 1 . . 1 . . . 1 . . . . . . 1 1 1 Ballistic Gun 21 | . 1 . 3 . 2 . . . . . . . . . . . . . . . . . 1 . . 14 Ballistic Cannon 7 | . . . 3 1 . . . . . . . . . . . . . . . . . . . 1 . 2 Launcher 6 | . . 1 . . 1 1 . . 1 . . . . . . . . . 1 . . . . . . 1 Special Weapon 3 | . 1 . . . . 1 . . . . . . 1 . . . . . . . . . . . . . Impact Weapon 5 | . 1 . 1 . 1 1 . . 1 . . . . . . . . . . . . . . . . . Slashing Weapon 6 | . . . . . 1 . . . 1 . . . . . . . . . 1 . . . 2 . 1 . Piercing Weapon . | . . . . . . . . . . . . . . . . . . . . . . . . . . . Special Melee Weapon . | . . . . . . . . . . . . . . . . . . . . . . . . . . . Unidentified Prototypes 22 | . . . 3 . . 1 . . . . . . 4 . . . . . . 3 1 . 5 . . 5 Parts Lost 30 | . . 1 3 . . . 1 . . . . . . . . . . . . . 1 . . 6 . 18 Power 5 | . . 1 . . . . 1 . . . . . . . . . . . . . 1 . . 1 . 1 Propulsion 4 | . . . 1 . . . . . . . . . . . . . . . . . . . . . . 3 Utility 17 | . . . 2 . . . . . . . . . . . . . . . . . . . . 5 . 10 Weapon 4 | . . . . . . . . . . . . . . . . . . . . . . . . . . 4 Highest Loss Streak 4 | . . 1 2 . . . 1 . . . . . . . . . . . . . 1 . . 2 . 4 To Critical Strikes 1 | . . . 1 . . . . . . . . . . . . . . . . . . . . . . . Average Backups 16 | 5 10 20 22 24 23 10 9 9 10 9 10 10 9 10 9 10 9 9 9 9 8 7 8 8 8 15 Power . | . 1 . 1 2 1 1 . . 1 1 1 1 . 1 1 1 1 1 1 1 . . . . . . Propulsion 3 | 3 1 2 6 9 8 1 1 1 1 . 1 1 . 1 1 1 . . . . . . 1 1 1 1 Utility 6 | . 4 7 6 6 7 4 6 6 6 5 5 5 4 5 4 5 5 5 5 5 5 4 5 6 5 7 Weapon 4 | 1 3 9 8 7 5 2 2 2 2 1 1 1 2 3 3 3 2 2 2 2 2 1 1 1 1 5 Tool/Special . | . . . . . . . . . . . . . . . . . . . . . . . . . . . Unused Backups 66 | . 3 . 11 1 5 3 . . . 2 . . 1 . . . 1 . . . . . 3 . 4 32 Power 6 | . . . 1 . 1 . . . . . . . . . . . . . . . . . . . . 4 Propulsion 15 | . 2 . 1 . 2 1 . . . . . . . . . . . . . . . . 1 . 2 6 Utility 26 | . . . 3 . . 2 . . . 2 . . . . . . 1 . . . . . 1 . 1 16 Weapon 17 | . 1 . 6 1 2 . . . . . . . . . . . . . . . . . 1 . . 6 Tool/Special 2 | . . . . . . . . . . . . . 1 . . . . . . . . . . . 1 . Average Slot Usage (%) 93 | . 100 98 98 100 95 90 99 99 100 91 94 94 96 94 92 94 94 94 93 93 88 93 92 88 93 84 Engine 5 | . 14 13 11 11 8 . . . . . . . 2 5 5 5 5 5 5 5 5 4 4 1 . . Core 2 | . . . . . . 6 6 6 7 5 5 5 3 5 5 5 5 5 5 5 4 4 4 6 2 3 Treads 11 | . 21 14 21 22 28 . . . . . . . . . . . . . . . . . . . . . Leg 1 | . . . . . . . . . . . . . . . . . . . . . . . . . . 7 Wheel 4 | . 6 14 10 11 7 1 . . . . . . . . . . . . . . . . . . . . Flight 12 | . . . . . . 42 46 46 46 38 41 41 40 35 35 36 36 36 36 36 35 31 31 29 29 10 Device 10 | . 13 12 10 11 9 6 5 7 7 5 4 4 7 4 4 5 4 4 5 4 7 12 12 9 16 14 Storage 7 | . 14 14 11 11 9 7 7 7 7 5 5 5 5 5 5 5 5 5 5 5 5 4 4 4 4 4 Processor 5 | . . . . . 5 7 7 7 7 5 5 5 5 5 5 5 5 5 5 5 5 4 4 4 4 13 Hackware 3 | . . . . . . 6 7 7 7 10 11 11 11 11 14 15 15 15 15 15 15 18 18 14 11 . Protection 7 | . . . 9 11 9 . 1 . . 5 5 5 3 5 5 5 5 5 5 5 5 4 4 7 5 9 Energy Gun 3 | . 14 14 10 . . . . . . . . . . . . . . . . . . . . . . 2 Energy Cannon 2 | . . . . 11 7 . . . . 2 5 4 . . . . 1 2 . . 1 2 . 2 1 . Ballistic Gun 4 | . 9 12 7 . 2 . . . . . . . . . . . . . . . . . . . . 6 Ballistic Cannon 1 | . . . 1 10 4 . . . . . . . . . . . . . . . . . . . . . Impact Weapon 1 | . 4 . 1 . 3 . . . . . . . . . . . . . . . . . . . . . Slashing Weapon 1 | . . . . . . 6 6 6 7 5 5 5 4 5 5 5 5 5 4 5 1 4 5 7 10 1 Peak Build Rating 300 | 7 8 11 32 30 38 57 58 59 60 75 72 73 101 95 110 109 112 112 116 118 122 135 139 160 166 300 Average Rating 91 | 5 7 10 19 28 31 48 55 56 58 69 71 71 89 94 108 109 109 111 113 114 113 127 128 144 157 234 On Entrance 76 | . 7 8 11 24 30 38 50 56 58 59 68 68 72 91 95 109 109 110 110 114 116 111 127 138 130 158 Avg Prop Armor Cover (%) 7 | 14 13 12 16 15 17 4 3 4 4 3 4 4 3 5 7 8 5 5 5 6 7 4 5 3 . 2 Naked Turns . | . . . . . . . . . . . . . . . . . . . . . . . . . . . Heaviest Build 130 | 14 90 90 104 112 117 103 25 22 27 36 36 36 69 35 35 29 47 47 42 31 44 51 51 54 56 130 Greatest Support 212 | 20 40 16 40 12 80 64 34 34 34 40 40 40 54 48 61 55 62 62 62 56 62 62 62 62 63 212 Greatest Overweight (x) 9 | . 5 5 8 9 9 2 . . . . . . 2 . . . . . . . . . . . . 3 Average Overweight (x) . | . 2 5 7 8 5 . . . . . . . . . . . . . . . . . . . . . Largest Inventory Capacity 25 | 8 25 25 25 25 25 25 10 10 10 10 10 10 10 10 10 10 10 10 10 10 10 10 10 10 10 25 Average Capacity 18 | 7 20 25 25 25 25 10 10 10 10 10 10 10 10 10 10 10 10 10 10 10 10 10 10 10 10 17 Most Carried 25 | 8 17 24 25 25 25 25 10 10 10 10 10 10 10 10 10 10 10 10 10 10 10 10 10 10 10 25 Average Carried 17 | 6 10 21 24 25 24 10 9 9 9 9 10 9 8 10 9 9 9 10 9 9 9 8 9 9 9 15 Final Capacity 25 | 8 25 25 25 25 25 10 10 10 10 10 10 10 10 10 10 10 10 10 10 10 10 10 10 10 10 25 Final Carried 25 | 8 17 24 25 25 25 10 9 10 10 10 10 10 10 10 10 10 10 10 10 10 9 10 10 10 9 25 Scrap Suit Usage (%) 1 | . . . . . . . . . . . . . . . . . . . . . . . . . . 1 Class Distribution -------------------- 37% | Mutant 21% | Hacker-Sprinter 12% | Scavenger-Mutant 8% | Scavenger-Sprinter 7% | Sprinter 7% | Scavenger-Tank Dominant Class ---------------- Mutant | -10/Materials Mutant | -10/Mines Scavenger-Mutant | -9/Materials Mutant | -9/Mines Mutant | -8/Materials Sprinter | -7/Factory Sprinter | -7/Storage Sprinter | -7/Recycling Sprinter | -7/Scraptown Hacker-Sprinter | -5/Factory Hacker-Sprinter | -5/Upper Caves Hacker-Sprinter | -5/Upper Caves Hacker-Sprinter | -5/Warlord Hacker-Sprinter | -4/Proximity Caves Hacker-Sprinter | -4/Factory Hacker-Sprinter | -4/Waste Hacker-Sprinter | -4/Factory Hacker-Sprinter | -4/Upper Caves Hacker-Sprinter | -4/Upper Caves Hacker-Sprinter | -4/Zhirov Hacker-Sprinter | -3/Proximity Caves Hacker-Sprinter | -3/Research Hacker-Sprinter | -3/Testing Hacker-Sprinter | -2/Research Hacker-Sprinter | -2/Quarantine Scavenger-Sprinter | -2/Protoforge Resources | -11 -10 -10 -9 -9 -8 -7 -7 -7 -7 -5 -5 -5 -5 -4 -4 -4 -4 -4 -4 -4 -3 -3 -3 -2 -2 -2 ----------- Run | Yrd Mat Min Mat Min Mat Fac Sto Rec Scr Fac Upp Upp War Pro Fac Was Fac Upp Upp Zhi Pro Res Tes Res Qua Frg Matter Collected 20574 | 280 425 258 1071 189 1391 335 . 246 68 221 34 174 235 . 60 40 345 90 232 130 720 97 238 221 151 13323 Remotely 1992 | . . . . . . . . . . . . . . . . . . . . . . . . . . 1992 Salvage Created 20782 | 304 634 304 1511 129 2019 367 58 500 . 271 . 107 . . 153 . 499 150 69 329 830 151 198 471 184 11544 Parts 1029 | 33 44 33 99 11 78 13 9 11 . 19 . 11 . . 5 . 21 . . 5 35 5 13 26 10 548 Haulers Intercepted 15 | . 2 . 6 . 3 1 . . . 1 . . . . 1 . . . . . . . . . . 1 Recyclers Shooed 14 | 1 2 1 3 . 2 1 . . . . . . . . . . 2 . . . . . . 1 1 . Parts Field Recycled . | . . . . . . . . . . . . . . . . . . . . . . . . . . . Retrieved Matter . | . . . . . . . . . . . . . . . . . . . . . . . . . . . Parts Self-Destructed 30 | . . . . . . . . . . . . 6 . . . . . . . 5 19 . . . . . Prevented 2 | . . . . . . . . . . . . . . . . . . . . . 2 . . . . . Parts Restored 10 | . . . . . . . . . . . . . . . . . . . . . . . . . . 10 Faulty 10 | . . . . . . . . . . . . . . . . . . . . . . . . . . 10 Kills | -11 -10 -10 -9 -9 -8 -7 -7 -7 -7 -5 -5 -5 -5 -4 -4 -4 -4 -4 -4 -4 -3 -3 -3 -2 -2 -2 ------- Run | Yrd Mat Min Mat Min Mat Fac Sto Rec Scr Fac Upp Upp War Pro Fac Was Fac Upp Upp Zhi Pro Res Tes Res Qua Frg Combat Hostiles Destroyed 370 | . 10 13 30 2 31 . 4 . . . . 4 . . . . 6 . 6 . 20 . 4 4 . 236 Melee 12 | . . . . . . . . . . . . . . . . . . . . . . . . . . 12 Guns 130 | . 10 . 14 . 6 . . . . . . . . . . . . . . . . . . . . 100 Cannons 60 | . . . 4 2 16 . . . . . . . . . . . . . . . 1 . . . . 37 AOE 163 | . . 13 12 . 8 . 4 . . . . 4 . . . . 6 . 6 . 19 . 4 4 . 83 Classes Destroyed 27 | 3 6 . 2 . 1 . . . . . . 2 . . . . 1 . . . . . 1 . . 11 Worker 26 | 2 4 . 3 2 5 1 . . . 1 . . . . 1 . 2 . . . . . 2 . . 3 Builder 15 | . 1 . 2 . 4 . 1 . . 4 . . . . . . 1 . . . . . . 1 . 1 Tunneler 18 | 9 3 4 1 . . . . . . . . . . . 1 . . . . . . . . . . . Hauler 16 | . 2 . 6 . 3 1 . . . 1 . . . . 1 . . . . . . . . . . 2 Recycler 29 | 1 1 1 3 . 6 4 . 7 . . . . . . . . 2 . . . . 1 . 2 1 . Minesweeper 3 | . . . . . . . . . . . . 1 . . . . . . . . 2 . . . . . Mechanic 13 | . . . . . . . . . . . . . . . . . . . . . . . . . . 13 Operator 9 | . 1 . . . 1 1 . . . 1 . . . . 1 . . . . . . . . 1 1 2 Drone 14 | . . . . . . . . . . . . . . . . . . . . . . . . . . 14 Watcher 17 | . 2 . 4 . 4 . . . . 1 . . . . . . 2 . . . . . 1 1 1 1 Swarmer 95 | . 9 6 13 . 7 . 4 . . . . 4 . . . . 4 . . . 12 . 4 4 . 28 Cutter 2 | . . . . . . . . . . . . . . . . . 2 . . . . . . . . . Saboteur 7 | . . . . . . . . . . . . . . . . . . . . . . . . . . 7 Grunt 90 | . 1 7 8 2 16 . . . . . . . . . . . . . 3 . 7 . . . . 46 Brawler 11 | . . . 1 . . . . . . . . . . . . . . . . . 1 . . . . 9 Duelist 14 | . . . . . . . . . . . . . . . . . . . . . . . . . . 14 Protector 14 | . . . . . . . . . . . . . . . . . . . . . . . . . . 14 Researcher 5 | . . . . . . . . . . . . . . . . . . . . . . . 1 . . 4 Sentry 23 | . . . 8 . 6 . . . . . . . . . . . . . 1 . . . . . . 8 Hunter 17 | . . . . . 2 . . . . . . . . . . . . . 2 . . . . . . 13 Programmer 16 | . . . . . . . . . . . . . . . . . . . . . . . . . . 16 Hotshot 3 | . . . . . . . . . . . . . . . . . . . . . . . . . . 3 Decapitator 13 | . . . . . . . . . . . . . . . . . . . . . . . . . . 13 Immortal 4 | . . . . . . . . . . . . . . . . . . . . . . . . . . 4 Striker 26 | . . . . . . . . . . . . . . . . . . . . . . . . . . 26 Executioner 17 | . . . . . . . . . . . . . . . . . . . . . . . . . . 17 V-Series 4 | . . . . . . . . . . . . . . . . . . . . . . . . . . 4 Scrapper 1 | . . . . . . . . . . . . . . . . . . . . . . . . . . 1 Scrapoid 1 | . . . . . . . . . . . . . . . . . . . . . . . . . . 1 Packrat 2 | . . . . . . . . . . . . . . . . . . 2 . . . . . . . . Samaritan 3 | . . . . . . . . . . . . 1 . . . . . . . . 2 . . . . . Wasp 3 | . . . . . . . . . . . . . . . . . 3 . . . . . . . . . Best Kill Streak 22 | 5 4 6 5 2 3 2 5 3 . 4 . 4 . . 2 . 7 . 6 . 7 1 4 6 1 22 Combat Bots Only 22 | . 3 3 4 2 3 . 4 . . . . 4 . . . . 4 . 6 . 7 . 4 4 . 22 Max Kills in Single Turn 6 | 1 2 3 3 1 2 1 3 1 . 1 . 4 . . 1 . 3 1 2 . 3 1 2 4 1 6 Gunslinging 1 | . 1 . . . . . . . . . . . . . . . . . . . . . . . . 1 Exploded 4 | . . 2 3 . 2 . 2 . . . . 4 . . . . 2 . 2 . 3 . 2 4 . 4 Melee 1 | . . . . . . . . . . . . . . . . . . . . . . . . . . 1 Uniques/NPCs Destroyed . | . . . . . . . . . . . . . . . . . . . . . . . . . . . Combat | -11 -10 -10 -9 -9 -8 -7 -7 -7 -7 -5 -5 -5 -5 -4 -4 -4 -4 -4 -4 -4 -3 -3 -3 -2 -2 -2 -------- Run | Yrd Mat Min Mat Min Mat Fac Sto Rec Scr Fac Upp Upp War Pro Fac Was Fac Upp Upp Zhi Pro Res Tes Res Qua Frg Hostile Shots Fired 978 | . 46 26 108 6 141 7 10 . . . 1 5 . . 1 . 15 . 6 . 18 23 5 60 7 493 Missed 418 | . 12 11 21 . 33 5 5 . . . . 3 . . 1 . 9 . 2 . 6 13 4 34 5 254 Hits 560 | . 34 15 87 6 108 2 5 . . . 1 2 . . . . 6 . 4 . 12 10 1 26 2 239 Melee 28 | . . . 5 . . . . . . . . . . . . . . . . . . . . . . 23 Projectile 532 | . 34 15 82 6 108 2 5 . . . 1 2 . . . . 6 . 4 . 12 10 1 26 2 216 AOE 17 | . . . . . . . . . . . . . . . . . 1 . . . . . . . . 16 Critical Strikes 45 | . . . 2 . 6 . . . . . . . . . . . 1 . . . 1 . . 4 . 31 Actively Blocked 31 | . . . . . . . . . . . . . . . . . . . . . . . . . . 31 Damage Taken 12529 | . 282 184 1133 97 1596 10 79 . . 4 18 38 23 . . . 231 . 17 . 297 163 30 582 43 7702 Core 1419 | . 37 29 152 29 205 5 17 . . . . . 23 . . . 64 . . . 24 18 . 83 25 708 Absorbed by Shields . | . . . . . . . . . . . . . . . . . . . . . . . . . . . Redirected to Shielding 179 | . 1 . 19 . . . . . . . 11 9 . . . . 36 . . . 15 13 . 75 . . Regen/Repaired (Parts) 2881 | . . . . . 236 . . . 75 . . . . . . . . . . . . . 88 42 53 2387 Core Remaining (%) 78 | 100 . 73 . 54 62 . . . 96 . . . . 97 . . . . . . 92 . 92 . . 43 Volleys Fired 1119 | 21 57 16 128 10 135 1 5 12 21 20 5 11 6 . . . 18 . 12 . 48 13 7 26 3 544 Largest 3 | 2 2 2 2 2 2 1 1 1 1 1 1 1 1 . . . 1 . 1 . 1 1 1 1 1 3 Hottest 225 | 90 100 70 105 108 115 65 65 65 5 65 65 65 50 . . . 113 . 46 . 113 113 113 120 120 225 Shots Fired 1947 | 42 113 18 232 16 237 1 5 12 21 20 5 11 6 . . . 18 . 12 . 48 13 7 25 3 1082 Gun 1222 | 42 112 4 190 . 48 . . . . . . . . . . . . . . . . . 3 . . 823 Cannon 523 | . . . 35 16 181 1 1 10 . 17 5 9 1 . . . 10 . . . 26 13 1 24 3 170 Launcher 169 | . . 14 7 . 8 . 4 . . . . 2 . . . . 7 . 12 . 22 . 3 1 . 89 Special 33 | . 1 . . . . . . 2 21 3 . . 5 . . . 1 . . . . . . . . . Kinetic 1227 | . 56 2 107 7 102 . . . . . . . . . . . . . . . . . 3 . . 950 Thermal 485 | 42 57 2 118 9 127 1 1 10 . 17 5 9 . . . . 10 . . . 26 13 1 24 3 10 Explosive 169 | . . 14 7 . 8 . 4 . . . . 2 . . . . 7 . 12 . 22 . 3 1 . 89 Electromagnetic 33 | . . . . . . . . . . . . . . . . . . . . . . . . . . 33 Entropic 1 | . . . . . . . . . . . . . 1 . . . . . . . . . . . . . Robot Hit Streak 69 | 8 8 13 12 6 17 . . 5 6 1 . 1 3 . . . 1 . 2 . 7 . . . . 69 Robot Miss Streak 8 | 3 8 2 5 1 3 . . . 2 1 . . 1 . . . 3 . . . 1 . . . . 5 Penetration Max 2 | . . . . . 1 . . . . . . . . . . . . . . . . . . . . 2 Secondary Targets 29 | . 1 . 2 . . . . . . . . . . . . . . . . . . . . . . 26 Max Gunslinging Chain 1 | . 1 . 1 . . . . . . . . . . . . . . . . . . . . . . 1 Shots Hit Robots 1298 | 24 60 9 150 10 170 19 . 12 11 12 . 6 4 . 14 . 16 4 1 10 20 2 6 10 6 722 Core Hits 859 | 13 26 26 67 5 69 5 7 5 . 4 . 5 . . 5 . 21 2 19 2 41 1 11 11 3 511 Critical Kills 37 | . . . . . 1 . . . . . . . . . . . . . . . . . 1 . . 35 Critical Parts Destroyed 59 | . . . . . . . . . . . . . . . . . . . . . . . . . . 59 Critical Strikes 131 | 1 5 . 3 . 8 2 . . . . . . . . 2 . . . . . 1 . 1 1 . 107 Burn 9 | 1 5 . 3 . . . . . . . . . . . . . . . . . . . . . . . Meltdown 1 | . . . . . 1 . . . . . . . . . . . . . . . . . . . . . Destroy 106 | . . . . . . . . . . . . . . . . . . . . . . . 1 . . 105 Blast 7 | . . . . . 7 . . . . . . . . . . . . . . . . . . . . . Sever 8 | . . . . . . 2 . . . . . . . . 2 . . . . . 1 . . 1 . 2 Melee Attacks 526 | . 11 . 15 . 24 52 6 16 . 59 1 9 . 1 27 . 67 8 . 10 18 29 22 47 15 89 Impact 48 | . 11 . 15 . 21 1 . . . . . . . . . . . . . . . . . . . . Slashing 478 | . . . . . 3 51 6 16 . 59 1 9 . 1 27 . 67 8 . 10 18 29 22 47 15 89 Piercing . | . . . . . . . . . . . . . . . . . . . . . . . . . . . Sneak Attacks 82 | . 5 . 1 . 7 8 . 7 . 6 . 2 . . 4 . 7 3 . . 5 2 3 4 2 16 Combat Hostiles . | . . . . . . . . . . . . . . . . . . . . . . . . . . . Follow-up Attacks 6 | . . . . . . . . . . . . . . . . . . . . . . . . 1 . 5 Damage Inflicted 89818 | 297 1005 1048 3193 224 5142 972 399 673 . 731 . 611 . . 760 . 1887 273 1781 887 3464 204 1266 1384 540 63077 Guns 25516 | 297 728 57 1883 . 622 . . . . . . . . . . . . . . . . . 23 . . 21906 Cannons 12276 | . . . 475 224 3322 . . . . . . . . . . . . . . . 156 . . . . 8099 Explosions 38374 | . . 991 749 . 565 . 399 . . . . 333 . . . . 953 . 1781 . 2434 . 638 412 . 29119 Melee 13644 | . 277 . 86 . 633 972 . 673 . 723 . 278 . . 760 . 934 273 . 887 874 204 605 972 540 3953 Ramming 8 | . . . . . . . . . . 8 . . . . . . . . . . . . . . . . Kinetic 32827 | . 348 30 1214 101 1669 . . . . . . . . . . . . . . . . . 23 . . 29442 Thermal 4590 | 297 380 27 1144 123 2275 . . . . . . . . . . . . . . . 156 . . . . 188 Explosive 38186 | . . 991 749 . 565 . 399 . . . . 333 . . . . 953 . 1781 . 2434 . 638 412 . 28931 Electromagnetic 563 | . . . . . . . . . . . . . . . . . . . . . . . . . . 563 Impact 1004 | . 277 . 86 . 562 79 . . . . . . . . . . . . . . . . . . . . Slashing 12640 | . . . . . 71 893 . 673 . 723 . 278 . . 760 . 934 273 . 887 874 204 605 972 540 3953 Piercing . | . . . . . . . . . . . . . . . . . . . . . . . . . . . Highest Corruption 7 | . 1 1 7 7 . . . . . . . . . . . . . . . . . . . 6 6 1 Average Corruption 2 | . 1 1 6 7 . . . . . . . . . . . . . . . . . . . 5 5 1 Corruption Purged 6 | . . . . . . . . . . . . . . . . . . . . . . . . . 6 . Corruption Blocked . | . . . . . . . . . . . . . . . . . . . . . . . . . . . Effects 164 | . 16 7 67 29 . . . . . . . . . . . . . . . . . . . 4 4 37 Message Errors 43 | . 5 1 22 3 . . . . . . . . . . . . . . . . . . . . . 12 Matter Fused 39 | . 4 1 14 7 . . . . . . . . . . . . . . . . . . . 1 1 11 Heat Flow Errors 18 | . 1 . 7 3 . . . . . . . . . . . . . . . . . . . 1 . 6 Energy Discharges 19 | . 2 1 7 4 . . . . . . . . . . . . . . . . . . . . 1 4 Parts Fused 1 | . . . . . . . . . . . . . . . . . . . . . . . . . . 1 Data Loss (minor) 21 | . 3 2 9 4 . . . . . . . . . . . . . . . . . . . . 2 1 Data Loss (major) 8 | . 1 1 2 3 . . . . . . . . . . . . . . . . . . . . . 1 Misfires 5 | . . . 4 1 . . . . . . . . . . . . . . . . . . . . . . Alerts 6 | . . 1 2 2 . . . . . . . . . . . . . . . . . . . 1 . . Weapon Failures 4 | . . . . 2 . . . . . . . . . . . . . . . . . . . 1 . 1 Overload Shots . | . . . . . . . . . . . . . . . . . . . . . . . . . . . Overflow Damage 6715 | . 44 . 124 . 463 209 64 185 . 223 . 135 . . 172 . 247 . 35 308 587 64 100 220 90 3445 Projectiles 439 | . . . 5 . 74 . . . . . . . . . . . . . . . . . . . . 360 Explosions 2713 | . . . 73 . 14 . 64 . . . . 2 . . . . 50 . 35 . 180 . . . . 2295 Melee 3563 | . 44 . 46 . 375 209 . 185 . 223 . 133 . . 172 . 197 . . 308 407 64 100 220 90 790 Knockbacks 36 | . 1 . 5 2 9 2 . . . . . . . . . . . . . . . . . . . 17 Impact 4 | . 1 . 1 . 1 1 . . . . . . . . . . . . . . . . . . . . Kinetic 30 | . . . 4 1 8 . . . . . . . . . . . . . . . . . . . . 17 Secondary 2 | . . . . 1 . 1 . . . . . . . . . . . . . . . . . . . . Self-Inflicted Damage 219 | . . 3 70 . 39 . . . . 4 . . . . . . 56 . . . 36 . . . . 11 Shots 11 | . . 1 4 . 3 . . . . . . . . . . . 1 . . . 1 . . . . 1 Rammed 1 | . . . . . . . . . . 1 . . . . . . . . . . . . . . . . Targets Rammed 1 | . . . . . . . . . . 1 . . . . . . . . . . . . . . . . Kicked . | . . . . . . . . . . . . . . . . . . . . . . . . . . . Crushed . | . . . . . . . . . . . . . . . . . . . . . . . . . . . Highest Temperature 536 | 150 140 18 346 282 216 164 105 190 196 266 240 126 166 52 90 . 256 172 251 . 261 204 253 536 119 279 Average Temperature 71 | 54 19 6 82 90 58 52 47 82 90 61 83 22 42 30 62 . 74 81 136 . 72 98 62 142 72 66 Received Heat Transfer 1788 | . 12 96 297 51 675 . 9 . . . 9 . . . . . . . 9 . . . . 36 9 585 Effects 9 | . . . 4 1 . . . . . . . . . . . . . . . . 1 . 2 1 . . Shutdowns 1 | . . . . . . . . . . . . . . . . . . . . . . . . 1 . . Energy Bleed 4 | . . . 2 1 . . . . . . . . . . . . . . . . 1 . . . . . Interference 3 | . . . 1 . . . . . . . . . . . . . . . . . . . 2 . . . Matter Decay 1 | . . . 1 . . . . . . . . . . . . . . . . . . . . . . . Siege Activations . | . . . . . . . . . . . . . . . . . . . . . . . . . . . Martial Activations . | . . . . . . . . . . . . . . . . . . . . . . . . . . . Shielding Activations . | . . . . . . . . . . . . . . . . . . . . . . . . . . . Robots Disrupted 1 | . . . . . . . . . . . . . . . . . . . . . . . . . . 1 Combat Hostiles 1 | . . . . . . . . . . . . . . . . . . . . . . . . . . 1 Robots Corrupted 7 | . 2 . 1 . 1 1 . . . . . . . . . . . . . . . . . . . 2 Combat Hostiles 2 | . . . . . . . . . . . . . . . . . . . . . . . . . . 2 Parts Fried 18 | . 2 . 3 . 8 2 . . . . . . . . . . . . . . . . . . . 3 Impact Corruptions 20 | . 5 . 2 . 11 2 . . . . . . . . . . . . . . . . . . . . Robots Melted 1 | . . . . . 1 . . . . . . . . . . . . . . . . . . . . . Combat Hostiles 1 | . . . . . 1 . . . . . . . . . . . . . . . . . . . . . Parts Melted 9 | 2 . . 4 . 2 . . . . . . . . . . . . . . . . . . . . 1 Heat Transferred 9194 | 843 1480 74 2997 222 3330 . . . . . . . . . . . . . . . 148 . . . . 100 Parts Sabotaged . | . . . . . . . . . . . . . . . . . . . . . . . . . . . Parts Stolen . | . . . . . . . . . . . . . . . . . . . . . . . . . . . Parts Stripped . | . . . . . . . . . . . . . . . . . . . . . . . . . . . Power Chain Reactions 1 | . . . . . . . . . . . . . . . . . . . . . . . . . . 1 Alert | -11 -10 -10 -9 -9 -8 -7 -7 -7 -7 -5 -5 -5 -5 -4 -4 -4 -4 -4 -4 -4 -3 -3 -3 -2 -2 -2 ------- Run | Yrd Mat Min Mat Min Mat Fac Sto Rec Scr Fac Upp Upp War Pro Fac Was Fac Upp Upp Zhi Pro Res Tes Res Qua Frg Maximum Alert Level 5 | . . . 2 . 1 . . 1 . . . . . . . . 1 . . . . 1 1 2 1 5 Low Security (%) 56 | 100 100 100 39 100 80 100 100 41 . 100 . . . . 100 100 94 . . . . 98 17 20 . 3 Level 1 16 | . . . 37 . 19 . . 58 . . . . . . . . 5 . . . . 1 82 73 100 7 Level 2 4 | . . . 23 . . . . . . . . . . . . . . . . . . . . 5 . 3 Level 3 1 | . . . . . . . . . . . . . . . . . . . . . . . . . . 3 Level 4 1 | . . . . . . . . . . . . . . . . . . . . . . . . . . 4 Level 5 20 | . . . . . . . . . . . . . . . . . . . . . . . . . . 77 High Security . | . . . . . . . . . . . . . . . . . . . . . . . . . . . Max Security . | . . . . . . . . . . . . . . . . . . . . . . . . . . . Peak Influence 6655 | 15 171 187 454 168 333 151 188 314 . 137 . . . . 32 . 207 . . . . 216 288 542 359 6655 Initial 304 | . 3 . 40 157 . 151 30 73 . . . . . . . . . . . . . 104 115 144 304 177 Average 1045 | 2 29 76 245 51 133 105 62 207 . 23 . . . . 6 . 149 . . . . 141 239 280 329 3553 Influence Increases 14562 | 60 529 427 981 76 1252 155 228 359 . 392 45 110 . . 79 . 441 15 140 15 505 232 283 688 122 7428 Destroy 0b10 Robot/C 6940 | . 200 260 600 40 620 . 80 . . . . 80 . . . . 120 . 120 . 400 . 100 80 . 4240 Destroy 0b10 Robot/NC 900 | 60 70 25 95 10 115 35 5 35 . 40 . 5 . . 20 . 35 . . 15 20 5 15 25 15 255 Destroy Leader 1112 | . 48 40 160 10 164 2 10 . . 4 . 10 . . 2 . 24 . 20 . 40 . 12 12 2 552 Successful Hack 598 | . 67 . 18 . 53 . 6 28 . 89 . . . . 32 . 4 . . . . 48 27 37 84 105 Select Force Hacks 360 | . 60 . . . 30 . . 270 . . . . . . . . . . . . . . . . . . Disable Machine 720 | . 30 15 30 15 60 30 15 . . 15 . . . . 15 . . . . . . . 75 15 . 405 Destroy Structure 2327 | . 9 72 63 1 120 28 37 11 . 94 . . . . 10 . 198 . . . . 74 54 189 21 1346 Partial Spotted 225 | . . . . . . . 15 . . 15 . . . . . . 15 . . . . 45 . 75 . 60 Lose Combat Pursuer 1380 | . 45 15 15 . 90 60 60 15 . 135 45 15 . . . . 45 15 . . 45 60 . 255 . 465 Influence Decreases 7907 | 55 534 322 680 482 919 420 108 245 302 281 132 115 19 . 79 . 264 167 55 125 350 181 231 404 348 1089 Entered New Map 1836 | . 2 . 65 249 . 182 38 115 302 . 42 6 19 . . . . 67 6 110 . 51 91 114 238 139 Time Decay 5390 | 55 433 312 581 233 655 238 60 130 . 257 90 109 . . 79 . 264 100 49 15 350 130 140 230 110 770 Lost Part 290 | . . 10 30 . . . 10 . . . . . . . . . . . . . . . . 60 . 180 Lost Ally 24 | . . . . . . . . . . 24 . . . . . . . . . . . . . . . . Purge Threat 367 | . 99 . 4 . 264 . . . . . . . . . . . . . . . . . . . . . Squads Dispatched 60 | . 4 . 2 . 6 4 3 . . 6 . . . . 3 . 8 . . . . 3 2 5 1 13 Investigation 27 | . 3 . . . 4 1 2 . . 3 . . . . 1 . 4 . . . . 2 . 1 . 6 Extermination 14 | . . . . . . 1 . . . 2 . . . . 1 . 3 . . . . 1 1 2 1 2 Reinforcement 18 | . 1 . 1 . 2 2 1 . . 1 . . . . 1 . 1 . . . . . 1 2 . 5 Assault 1 | . . . 1 . . . . . . . . . . . . . . . . . . . . . . . Garrison . | . . . . . . . . . . . . . . . . . . . . . . . . . . . Intercept . | . . . . . . . . . . . . . . . . . . . . . . . . . . . Searches Triggered . | . . . . . . . . . . . . . . . . . . . . . . . . . . . Unchained Authorized 2 | . . . . . . . . . . . . . . . . . . . . . . . . 1 1 . Construction Impeded 4 | . . . . . 1 . 1 . . . . . . . . . . . . . . . 1 1 . . Haulers Reinforced 2 | . . . . . . 2 . . . . . . . . . . . . . . . . . . . . Active Scanning Responses . | . . . . . . . . . . . . . . . . . . . . . . . . . . . Cargo Convoy Interrupts . | . . . . . . . . . . . . . . . . . . . . . . . . . . . Stealth | -11 -10 -10 -9 -9 -8 -7 -7 -7 -7 -5 -5 -5 -5 -4 -4 -4 -4 -4 -4 -4 -3 -3 -3 -2 -2 -2 --------- Run | Yrd Mat Min Mat Min Mat Fac Sto Rec Scr Fac Upp Upp War Pro Fac Was Fac Upp Upp Zhi Pro Res Tes Res Qua Frg Distress Signals 26 | . . . 4 . 6 1 1 . . . . . 1 . . . 1 . . . . 1 1 2 1 7 Communications Jammed 1 | . . . . . . . . . . . . . . . . . . . . . . . . . . 1 Distress Signals 1 | . . . . . . . . . . . . . . . . . . . . . . . . . . 1 Times Spotted 740 | . 18 13 58 2 55 10 6 1 . 17 3 5 17 . 8 . 18 1 5 . 14 10 9 33 10 427 Peak Tracking Total 18 | . 3 4 5 2 6 6 8 1 . 8 3 4 8 . 5 . 7 1 5 . 4 11 4 18 3 15 Tactical Retreats 59 | . 2 1 1 . 5 3 2 1 . 2 2 1 . . 1 . 2 1 . . 3 1 . 6 2 23 ECM-based Alert Blocks 19 | . . . . . . . . . . . . . . . 4 . . . . . . . . . 3 12 Traps | -11 -10 -10 -9 -9 -8 -7 -7 -7 -7 -5 -5 -5 -5 -4 -4 -4 -4 -4 -4 -4 -3 -3 -3 -2 -2 -2 ------- Run | Yrd Mat Min Mat Min Mat Fac Sto Rec Scr Fac Upp Upp War Pro Fac Was Fac Upp Upp Zhi Pro Res Tes Res Qua Frg Traps Triggered 23 | . 1 . . . 2 5 1 . . . . . . . 2 . 1 . . . . . 1 1 1 8 Indirectly . | . . . . . . . . . . . . . . . . . . . . . . . . . . . Trap Hack Attempts . | . . . . . . . . . . . . . . . . . . . . . . . . . . . Triggered . | . . . . . . . . . . . . . . . . . . . . . . . . . . . Disarmed . | . . . . . . . . . . . . . . . . . . . . . . . . . . . Reprogrammed . | . . . . . . . . . . . . . . . . . . . . . . . . . . . Reused . | . . . . . . . . . . . . . . . . . . . . . . . . . . . Traps Extracted . | . . . . . . . . . . . . . . . . . . . . . . . . . . . Installed 1 | . . 1 . . . . . . . . . . . . . . . . . . . . . . . . Triggered . | . . . . . . . . . . . . . . . . . . . . . . . . . . . Most Traps Carried 2 | . . 2 2 . . . . . . . . . . . . . . . . . . . . . . . Machines | -11 -10 -10 -9 -9 -8 -7 -7 -7 -7 -5 -5 -5 -5 -4 -4 -4 -4 -4 -4 -4 -3 -3 -3 -2 -2 -2 ---------- Run | Yrd Mat Min Mat Min Mat Fac Sto Rec Scr Fac Upp Upp War Pro Fac Was Fac Upp Upp Zhi Pro Res Tes Res Qua Frg Machines Disabled 56 | . 2 1 2 1 4 2 1 . . 1 . . 1 . 1 . . . . . 3 . 5 1 . 31 Max in Single Turn 1 | . 1 1 1 1 1 1 1 . . 1 . . 1 . 1 . . . . . 1 . 1 1 . 1 Garrison Access 10 | . . . . . 1 . . . . . . . . . . . 2 . . . . 3 1 2 . 1 Machines Repaired . | . . . . . . . . . . . . . . . . . . . . . . . . . . . Machines Dismantled . | . . . . . . . . . . . . . . . . . . . . . . . . . . . Machines Sabotaged . | . . . . . . . . . . . . . . . . . . . . . . . . . . . Overloaded Fab Kills . | . . . . . . . . . . . . . . . . . . . . . . . . . . . Hacking | -11 -10 -10 -9 -9 -8 -7 -7 -7 -7 -5 -5 -5 -5 -4 -4 -4 -4 -4 -4 -4 -3 -3 -3 -2 -2 -2 --------- Run | Yrd Mat Min Mat Min Mat Fac Sto Rec Scr Fac Upp Upp War Pro Fac Was Fac Upp Upp Zhi Pro Res Tes Res Qua Frg Machines Accessed 173 | . 8 1 13 1 17 11 5 14 7 14 . . 6 . 6 . 14 . . 4 . 10 9 10 7 16 Terminals 90 | . 6 . 9 . 10 3 5 5 . 9 . . . . 5 . 7 . . . . 3 6 7 5 10 Fabricators 6 | . . . . . . 2 . . . 1 . . . . . . 1 . . . . . . . . 2 Repair Stations 5 | . . . 1 . 2 . . . . . . . . . . . . . . . . . 1 . 1 . Recycling Units 31 | . 2 . 2 . 2 4 . 9 . 3 . . . . 1 . 3 . . . . 2 . . . 3 Scanalyzers 10 | . . . 1 . 2 1 . . . 1 . . . . . . 1 . . . . 2 1 . 1 . Garrison Access 12 | . . . . . 1 1 . . . . . . . . . . 2 . . . . 3 1 3 . 1 Total Hacks 436 | . 33 1 33 1 50 18 10 40 24 36 . . 6 . 15 . 29 . . 17 . 24 14 23 15 47 Successful 272 | . 16 1 16 1 25 6 3 21 24 29 . . 6 . 7 . 19 . . 17 . 16 12 10 12 31 Failed 161 | . 16 . 17 . 24 12 7 18 . 7 . . . . 8 . 10 . . . . 8 2 13 3 16 Catastrophic 20 | . 3 . 3 . 3 2 2 2 . . . . . . . . 2 . . . . . . 2 . 1 Database Lockouts 3 | . 1 . . . 1 . . 1 . . . . . . . . . . . . . . . . . . Manual 200 | . 21 . 19 . 24 5 3 21 . 19 . . . . 13 . 12 . . . . 9 3 9 7 35 Terminals 250 | . 27 . 25 . 32 5 10 16 . 22 . . . . 13 . 15 . . . . 10 8 18 10 39 Fabricators 13 | . . . . . . 4 . . . 4 . . . . . . 1 . . . . . . . . 4 Repair Stations 11 | . . . 2 . 5 . . . . . . . . . . . . . . . . . 2 . 2 . Recycling Units 72 | . 6 . 2 . 7 7 . 24 . 8 . . . . 2 . 7 . . . . 6 . . . 3 Scanalyzers 23 | . . . 4 . 3 1 . . . 2 . . . . . . 2 . . . . 5 3 . 3 . Garrison Access 18 | . . . . . 3 1 . . . . . . . . . . 4 . . . . 3 1 5 . 1 Terminal Hacks 131 | . 11 1 8 1 11 . 2 3 24 9 . . 6 . 2 . 6 . . 17 . 7 3 6 2 12 Record 27 | . . . . . . . . . 15 . . . 5 . . . . . . 5 . . . . 1 1 Part Schematic 8 | . 1 . . . 1 . . 1 . . . . . . . . . . . 4 . . 1 . . . Robot Analysis 19 | . 5 . 1 . 1 . . . 8 . . . . . . . . . . 4 . . . . . . Prototype ID Bank 11 | . 1 . 3 . 1 . . . . 1 . . . . . . . . . 4 . 1 . . . . Open Door 7 | . . 1 . 1 . . 2 . . . . . 1 . . . . . . . . . 1 1 . . Level Access Points 1 | . . . . . . . . . . . . . . . . . . . . . . . . . . 1 Branch Access Points 3 | . . . . . . . . . . 1 . . . . . . 1 . . . . 1 . . . . Emergency Access Points 3 | . 1 . . . . . . . . 1 . . . . . . . . . . . . . . . 1 Machine Index 1 | . . . . . . . . . . . . . . . . . . . . . . . . . . 1 Terminal Index 4 | . . . . . . . . . . 1 . . . . 1 . 1 . . . . 1 . . . . Recycling Unit Index 3 | . . . . . . . . . . 1 . . . . . . . . . . . 1 . 1 . . Garrison Index 1 | . . . . . . . . . . . . . . . . . . . . . . 1 . . . . Alert Level 2 | . . . 1 . 1 . . . . . . . . . . . . . . . . . . . . . Unreport Threat 4 | . 1 . 1 . 2 . . . . . . . . . . . . . . . . . . . . . Locate Traps 12 | . 1 . 1 . 2 . . . . 1 . . . . 1 . 2 . . . . . 1 1 1 1 Maintenance Status 1 | . . . . . . . . . . . . . . . . . . . . . . 1 . . . . Security Status 1 | . . . . . . . . . . . . . . . . . . . . . . . . . . 1 Recall Investigation 1 | . . . . . . . . . . 1 . . . . . . . . . . . . . . . . Recall Extermination 5 | . . . . . . . . . . 1 . . . . . . 2 . . . . . . 1 . 1 Hauler Manifests 2 | . . . . . 1 . . 1 . . . . . . . . . . . . . . . . . . Registered Components 1 | . 1 . . . . . . . . . . . . . . . . . . . . . . . . . Zone Layout 12 | . . . 1 . 2 . . 1 . 1 . . . . . . . . . . . 1 . 2 . 4 Proto ID Catalog 2 | . . . . . . . . . 1 . . . . . . . . . . . . . . . . 1 Fabricator Hacks 9 | . . . . . . 2 . . . 3 . . . . . . 1 . . . . . . . . 3 Network Status 3 | . . . . . . 1 . . . 1 . . . . . . 1 . . . . . . . . . Load Schematic 3 | . . . . . . 1 . . . 1 . . . . . . . . . . . . . . . 1 Build 3 | . . . . . . . . . . 1 . . . . . . . . . . . . . . . 2 Repair Station Hacks 10 | . . . 2 . 4 . . . . . . . . . . . . . . . . . 2 . 2 . Scan Component 5 | . . . 1 . 2 . . . . . . . . . . . . . . . . . 1 . 1 . Repair 5 | . . . 1 . 2 . . . . . . . . . . . . . . . . . 1 . 1 . Recycling Unit Hacks 20 | . . . 2 . . 3 . 6 . 3 . . . . 1 . 3 . . . . 2 . . . . Retrieve Components 20 | . . . 2 . . 3 . 6 . 3 . . . . 1 . 3 . . . . 2 . . . . Scanalyzer 16 | . . . 2 . 3 . . . . 2 . . . . . . 2 . . . . 1 3 . 3 . Insert Component 10 | . . . 1 . 3 . . . . 1 . . . . . . . . . . . 1 1 . 3 . Analyze 3 | . . . 1 . . . . . . 1 . . . . . . . . . . . . 1 . . . Retrieve Study 3 | . . . . . . . . . . . . . . . . . 2 . . . . . 1 . . . Garrison Access Hacks 10 | . . . . . 1 . . . . . . . . . . . 2 . . . . 3 1 2 . 1 Seal Access 10 | . . . . . 1 . . . . . . . . . . . 2 . . . . 3 1 2 . 1 Unauthorized Hacks 76 | . 5 . 2 . 6 1 1 12 . 12 . . . . 4 . 5 . . . . 3 3 2 5 15 Terminals 50 | . 3 . 2 . 5 . 1 3 . 8 . . . . 3 . 2 . . . . 1 3 2 5 12 Track 7 | . . . . . . . . . . . . . . . . . . . . . . . . 1 2 4 Assimilate 9 | . . . . . . . 1 . . 5 . . . . . . 1 . . . . . 1 . . 1 Botnet 26 | . 2 . 2 . 4 . . 3 . 2 . . . . 3 . 1 . . . . 1 2 1 3 2 Detonate 1 | . . . . . . . . . . . . . . . . . . . . . . . . . . 1 Disrupt 3 | . . . . . . . . . . . . . . . . . . . . . . . . . . 3 Operators 4 | . 1 . . . 1 . . . . 1 . . . . . . . . . . . . . . . 1 Fabricators 2 | . . . . . . 1 . . . 1 . . . . . . . . . . . . . . . . Prioritize 1 | . . . . . . . . . . 1 . . . . . . . . . . . . . . . . Recompile 1 | . . . . . . 1 . . . . . . . . . . . . . . . . . . . . Repair Stations . | . . . . . . . . . . . . . . . . . . . . . . . . . . . Recycling Units 24 | . 2 . . . 1 . . 9 . 3 . . . . 1 . 3 . . . . 2 . . . 3 Tunnel 12 | . 2 . . . 1 . . 9 . . . . . . . . . . . . . . . . . . Fedlink 12 | . . . . . . . . . . 3 . . . . 1 . 3 . . . . 2 . . . 3 Scanalyzers . | . . . . . . . . . . . . . . . . . . . . . . . . . . . Garrison Access . | . . . . . . . . . . . . . . . . . . . . . . . . . . . Data Cores Recovered 4 | . . . . . . . . . . . . . . . 1 . . . . . . . . 1 1 1 Used 2 | . . . . . . . . . . . . . . . . . . . . . . . . . 1 1 Hacking Detections 116 | . 8 . 9 . 14 10 4 11 . 12 . . . . 5 . 8 . . . . 7 5 8 4 11 Full Trace Events 4 | . . . . . 1 . 1 . . . . . . . . . . . . . . . . 1 . 1 Feedback Events . | . . . . . . . . . . . . . . . . . . . . . . . . . . . Feedback Blocked . | . . . . . . . . . . . . . . . . . . . . . . . . . . . Robot Schematics Acquired 3 | . . . . . . . . . . . . . . . . . . . . . . . . . . 3 Robots Built . | . . . . . . . . . . . . . . . . . . . . . . . . . . . Authchips . | . . . . . . . . . . . . . . . . . . . . . . . . . . . Time . | . . . . . . . . . . . . . . . . . . . . . . . . . . . Total Robot Build Rating . | . . . . . . . . . . . . . . . . . . . . . . . . . . . Part Schematics Acquired 24 | . 1 . 1 . 1 . . 1 . 1 . . . . . . . . . 4 . . 5 . . 10 Parts Built 4 | . . . . . . . . . . 1 . . . . . . . . . . . . . . . 3 Authchips 1 | . . . . . . . . . . 1 . . . . . . . . . . . . . . . . Time 232 | . . . . . . . . . . 134 . . . . . . . . . . . . . . . 98 Total Part Build Rating 19 | . . . . . . . . . . 4 . . . . . . . . . . . . . . . 15 Part Studies Acquired 3 | . . . . . . . . . . . . . . . . . 2 . . . . . 1 . . . Parts Repaired 5 | . . . 1 . 2 . . . . . . . . . . . . . . . . . 1 . 1 . Time 200 | . . . 76 . 76 . . . . . . . . . . . . . . . . . 12 . 36 . Parts Recycled . | . . . . . . . . . . . . . . . . . . . . . . . . . . . Recycled Matter . | . . . . . . . . . . . . . . . . . . . . . . . . . . . Retrieved Matter . | . . . . . . . . . . . . . . . . . . . . . . . . . . . Retrieved Components 49 | . . . 10 . . 9 . 12 . 9 . . . . 2 . 4 . . . . 3 . . . . Parts Scanalyzed 3 | . . . 1 . . . . . . 1 . . . . . . . . . . . . 1 . . . Part Schematics Acquired 3 | . . . 1 . . . . . . 1 . . . . . . . . . . . . 1 . . . Parts Damaged 2 | . . . 1 . . . . . . . . . . . . . . . . . . . 1 . . . Bothacking | -11 -10 -10 -9 -9 -8 -7 -7 -7 -7 -5 -5 -5 -5 -4 -4 -4 -4 -4 -4 -4 -3 -3 -3 -2 -2 -2 ------------ Run | Yrd Mat Min Mat Min Mat Fac Sto Rec Scr Fac Upp Upp War Pro Fac Was Fac Upp Upp Zhi Pro Res Tes Res Qua Frg Used RIF Installer . | . . . . . . . . . . . . . . . . . . . . . . . . . . . Robots Hacked 17 | . . . . . . . . 2 12 . . . 3 . . . . . . . . . . . . . Non-combat 8 | . . . . . . . . 1 6 . . . 1 . . . . . . . . . . . . . Combat 9 | . . . . . . . . 1 6 . . . 2 . . . . . . . . . . . . . Robot Hacks Applied 17 | . . . . . . . . 2 12 . . . 3 . . . . . . . . . . . . . parse_system 17 | . . . . . . . . 2 12 . . . 3 . . . . . . . . . . . . . Relay Couplers Released 2 | . . . . . 2 . . . . . . . . . . . . . . . . . . . . . Machine Destruction 2 | . . . . . 2 . . . . . . . . . . . . . . . . . . . . . Fabnet Peak Effective % . | . . . . . . . . . . . . . . . . . . . . . . . . . . . Robots Rewired . | . . . . . . . . . . . . . . . . . . . . . . . . . . . Allies Hacked 1 | . . . . . . . . . . 1 . . . . . . . . . . . . . . . . Hacks Repelled . | . . . . . . . . . . . . . . . . . . . . . . . . . . . Allies | -11 -10 -10 -9 -9 -8 -7 -7 -7 -7 -5 -5 -5 -5 -4 -4 -4 -4 -4 -4 -4 -3 -3 -3 -2 -2 -2 -------- Run | Yrd Mat Min Mat Min Mat Fac Sto Rec Scr Fac Upp Upp War Pro Fac Was Fac Upp Upp Zhi Pro Res Tes Res Qua Frg Total Allies 25 | . . . . . . . . . . 4 . . . . . 20 . . . . . . 1 . . . Largest Group 20 | . . . . . . . . . . 2 . . . . . 20 3 . . . . . 1 . . . Highest-Rated Group 720 | . . . . . . . . . . 36 . . . . . 720 75 . . . . . 10 . . . Highest-Rated Ally 50 | . . . . . . . . . . 26 . . . . . 50 25 . . . . . 10 . . . Total Orders 1 | . . . . . . . . . . . . . . . . . . . . . . . 1 . . . STAY 1 | . . . . . . . . . . . . . . . . . . . . . . . 1 . . . Ally Attacks . | . . . . . . . . . . . . . . . . . . . . . . . . . . . Total Damage . | . . . . . . . . . . . . . . . . . . . . . . . . . . . Kills . | . . . . . . . . . . . . . . . . . . . . . . . . . . . Allies Corrupted . | . . . . . . . . . . . . . . . . . . . . . . . . . . . Allies Melted 3 | . . . . . . . . . . . . . . . . . . . . . . . . . . 3 Intel | -11 -10 -10 -9 -9 -8 -7 -7 -7 -7 -5 -5 -5 -5 -4 -4 -4 -4 -4 -4 -4 -3 -3 -3 -2 -2 -2 ------- Run | Yrd Mat Min Mat Min Mat Fac Sto Rec Scr Fac Upp Upp War Pro Fac Was Fac Upp Upp Zhi Pro Res Tes Res Qua Frg Active Infowar (turns) 21026 | 54 2173 846 2289 841 2484 441 93 273 493 639 184 414 598 94 245 55 548 203 250 75 713 255 296 420 213 5837 Optics 5459 | . . . . . . . . . . . . . . . . . . . . . . . . . . 5459 Sensors 6814 | . . . . . 97 441 93 273 493 639 184 414 598 94 241 55 548 203 250 73 651 247 281 420 211 308 Seismic 9572 | 54 2173 846 2289 841 2387 . . . . . . . . . . . . . . . 120 249 291 322 . . Cloaking 722 | . . . . . . . . . . . . . . . . . . . . . . . . . . 722 Jamming 945 | . . . . . . . . . . . . . . . . . . . . 2 420 1 . 131 108 283 ECM 308 | . . . . . . . . . . . . . . . 4 . . . . . . . . . 160 144 Robot Analysis Total 19 | . 5 . 1 . 1 . . . 8 . . . . . . . . . . 4 . . . . . . Derelict Logs Recovered 9 | . . 2 . 1 . . . . . . 1 2 . . . . . 1 2 . . . . . . . Drone Launches . | . . . . . . . . . . . . . . . . . . . . . . . . . . . Drone Recoveries . | . . . . . . . . . . . . . . . . . . . . . . . . . . . Exploration | -11 -10 -10 -9 -9 -8 -7 -7 -7 -7 -5 -5 -5 -5 -4 -4 -4 -4 -4 -4 -4 -3 -3 -3 -2 -2 -2 ------------- Run | Yrd Mat Min Mat Min Mat Fac Sto Rec Scr Fac Upp Upp War Pro Fac Was Fac Upp Upp Zhi Pro Res Tes Res Qua Frg Turns Passed 25299 | 279 2333 921 2839 917 5218 510 120 273 493 653 186 427 602 96 251 55 591 207 252 82 793 260 299 495 225 5922 Spaces Moved 28991 | 99 888 492 1076 391 1881 1065 249 679 1719 1782 644 1099 964 224 775 231 1398 594 880 169 1128 621 845 1181 708 7209 Core 2 | 2 . . . . . . . . . . . . . . . . . . . . . . . . . . Treads 1002 | 2 436 . 4 . 560 . . . . . . . . . . . . . . . . . . . . . Legs 1867 | . . . . . . . . . . . . . . . . . . . . . . . . . . 1867 Wheels 3828 | 95 452 492 1072 391 1321 5 . . . . . . . . . . . . . . . . . . . . Hover 918 | . . . . . . . . . . . . . . . . . . . . . . . . . . 918 Flight 21374 | . . . . . . 1060 249 679 1719 1782 644 1099 964 224 775 231 1398 594 880 169 1128 621 845 1181 708 4424 Fastest Speed 7 | 50 100 175 175 210 115 20 20 20 20 17 17 17 15 21 13 19 12 12 12 18 12 12 12 12 11 7 Average Speed 57 | 100 196 175 199 221 212 26 22 24 25 22 22 22 23 22 22 22 20 21 22 22 20 19 19 20 17 43 Slowest Speed 320 | 160 320 175 320 225 243 172 26 26 26 26 23 23 157 23 23 23 23 23 23 23 26 25 23 25 18 260 Overloaded Moves 434 | . . . . . . . . . . . . . 8 . 3 . 23 1 8 . 12 16 13 87 31 232 Propulsion Burnouts . | . . . . . . . . . . . . . . . . . . . . . . . . . . . Robots Hopped 71 | . . . . . . 8 3 2 . 9 . 1 1 . . 1 9 . 1 . . 2 2 11 1 20 Potential Cave-ins 2 | . . . . . . . . . . 2 . . . . . . . . . . . . . . . . Cave-ins Triggered . | . . . . . . . . . . . . . . . . . . . . . . . . . . . Teleports 1 | . . . . . . . . . . . . . . . . . . . . . . . 1 . . . Exploration Rate (%) 66 | 5 98 88 96 89 79 21 55 96 89 36 70 89 90 36 17 96 42 66 74 60 97 26 75 40 74 85 Regions Visited 26 Branch Regions 16 Pre-discovered Areas 19 | . 2 2 . . 1 . . 9 . 1 . . . . . . . 1 . 3 . . . . . . Known Exits Taken 18 | . . . . . . 1 1 1 1 1 1 1 1 1 . . 1 1 1 1 1 1 1 1 1 . Unknown Exits Taken 6 | 1 1 1 1 1 1 . . . . . . . . . . . . . . . . . . . . . Scrap Searched 26 | . . 2 . 1 . . . . 5 . 2 5 . . . . . 2 5 . 4 . . . . . Spaces Dug 542 | . 3 . 40 . 26 27 2 9 . 45 1 25 . 1 5 . 94 1 . . 11 38 13 50 5 146 Terrain Destroyed 1835 | . 3 104 69 1 121 28 56 13 . 50 2 46 . 1 5 . 113 1 94 . 348 40 27 68 8 637 Melee 256 | . 2 . 12 . 15 27 2 3 . 40 1 4 . 1 5 . 48 1 . . 2 27 13 29 5 19 Projectile 450 | . 1 . 3 1 43 1 1 10 . 10 1 8 . . . . 10 . . . 16 13 . 24 3 305 AOE 1129 | . . 104 54 . 63 . 53 . . . . 34 . . . . 55 . 94 . 330 . 14 15 . 313 Terrain Rammed . | . . . . . . . . . . . . . . . . . . . . . . . . . . . Walls Destroyed . | . . . . . . . . . . . . . . . . . . . . . . . . . . . Machines Disabled . | . . . . . . . . . . . . . . . . . . . . . . . . . . . Actions | -11 -10 -10 -9 -9 -8 -7 -7 -7 -7 -5 -5 -5 -5 -4 -4 -4 -4 -4 -4 -4 -3 -3 -3 -2 -2 -2 --------- Run | Yrd Mat Min Mat Min Mat Fac Sto Rec Scr Fac Upp Upp War Pro Fac Was Fac Upp Upp Zhi Pro Res Tes Res Qua Frg Total 35118 | 232 1341 531 1524 428 2841 1214 290 741 1761 1942 678 1253 1331 266 821 231 1598 665 919 194 1611 697 939 1328 789 8953 Wait 3244 | 98 354 4 173 14 675 32 22 28 12 50 27 125 314 41 6 . 84 61 11 . 344 26 17 64 28 634 Move 28834 | 98 887 491 1075 390 1880 1049 242 674 1718 1764 643 1096 961 223 775 228 1381 593 877 168 1127 616 839 1160 705 7174 Hop 58 | . . . . . . 7 3 2 . 8 . 1 1 . . 1 7 . 1 . . 2 2 9 1 13 Pick Up 268 | 7 14 8 32 2 18 10 1 1 1 9 . 2 8 . 3 1 3 . 3 1 2 4 10 2 9 117 Fast Attach 145 | 7 . . 6 . 14 12 . 1 3 6 . . 9 . 2 . 3 . 3 6 6 . 11 6 4 46 Attach 130 | . . 2 7 . 4 15 1 . . 4 . . 2 . 3 . . . 3 . 24 3 5 5 4 48 Detach 58 | . . . 1 . . 4 . . . . . . . . . . . . . . 22 . 2 4 . 25 Swap 357 | 1 11 8 42 7 57 8 9 6 2 10 2 7 10 1 4 . 27 3 3 3 13 4 7 7 12 93 Drop 345 | . 7 1 45 5 34 24 1 1 4 11 . 2 20 . 1 1 8 . 6 6 7 . 16 4 10 131 Fire 1119 | 21 57 16 128 10 135 1 5 12 21 20 5 11 6 . . . 18 . 12 . 48 13 7 26 3 544 Melee 502 | . 11 . 15 . 24 52 6 16 . 59 1 9 . 1 27 . 67 8 . 10 18 29 22 41 13 73 Ram 1 | . . . . . . . . . . 1 . . . . . . . . . . . . . . . . Kick . | . . . . . . . . . . . . . . . . . . . . . . . . . . . Crush . | . . . . . . . . . . . . . . . . . . . . . . . . . . . Escape Stasis 35 | . . . . . . . . . . . . . . . . . . . . . . . 1 . . 34 Rewire . | . . . . . . . . . . . . . . . . . . . . . . . . . . . Trap 1 | . . 1 . . . . . . . . . . . . . . . . . . . . . . . . Miscellaneous 21 | . . . . . . . . . . . . . . . . . . . . . . . . . . 21 Route ------- -11/Scrapyard -10/Materials (discovered 5 exits: *Mat x3 / *Min / [*Sub]) -10/Mines (discovered 2 exits: *Mat x2) -9/Materials (discovered 4 exits: *Mat x3 / *Min) -9/Mines (discovered 3 exits: *Mat x2 / [*Zio]) -8/Materials (discovered 2 exits: *Fac x2) -7/Factory -7/Storage -7/Recycling (discovered 2 exits: *Fac / *Scr) -7/Scraptown (discovered 2 exits: *Fac x2) -5/Factory (discovered 4 exits: *Fac x2 / *Upp x2) -5/Upper Caves -5/Upper Caves -5/Warlord -4/Proximity Caves -4/Factory -4/Waste -4/Factory (discovered 3 exits: *Res / *Upp x2) -4/Upper Caves -4/Upper Caves (discovered 2 exits: *Res / *Zhi) -4/Zhirov -3/Proximity Caves -3/Research (discovered 3 exits: Arm / *Tes x2) -3/Testing -2/Research (discovered 2 exits: *Qua x2) -2/Quarantine (discovered 3 exits: *Acc / [*Sec] / *Frg) -2/Protoforge 0bPrime History --------- Turn | Location | Event 48 | -11/Scrapyard | Discovered new exit (range 16) 280 | -11/Scrapyard | Entered Materials 311 | -10/Materials | Build established: Mutant 474 | -10/Materials | Discovered new exit (range 10) 660 | -10/Materials | Discovered new exit (range 4) 902 | -10/Materials | Discovered new exit (range 3) 914 | -10/Materials | Central database locked down 985 | -10/Materials | Discovered new exit (range 6) 1621 | -10/Materials | Discovered new exit (range 10) 2613 | -10/Materials | Entered Mines 2627 | -10/Mines | Found the Drone Emporium 2640 | -10/Mines | Found Prototype Device 2680 | -10/Mines | Learned location of Zion (-7) 2730 | -10/Mines | Received a Rocket Launcher from a helpful Derelict 2750 | -10/Mines | Found a damaged Exp. Sensor Array with a note attached 2753 | -10/Mines | Found Prototype Device 3064 | -10/Mines | Discovered new exit (range 14) 3112 | -10/Mines | Discovered new exit (range 6) 3183 | -10/Mines | Excavation squad dispatched 3183 | -10/Mines | A large section of the Mines collapsed 3354 | -10/Mines | Found a hidden stash of uninstalled traps 3534 | -10/Mines | Entered Materials 3534 | -9/Materials | Evolved 2 slots: Propulsion x1, Utility x1 4029 | -9/Materials | Discovered new exit (range 8) 4456 | -9/Materials | Build established: Scavenger-Mutant 4584 | -9/Materials | Discovered new exit (range 16) 5409 | -9/Materials | Identified Decoy Drone Bay 5687 | -9/Materials | Repaired Broken Imp. VTOL Module? 5710 | -9/Materials | Discovered new exit (range 11) 6018 | -9/Materials | Discovered new exit (range 14) 6334 | -9/Materials | First assault squad dispatched 6373 | -9/Materials | Entered Mines 6374 | -9/Mines | A Derelict revealed a hidden shortcut to a safe place 6508 | -9/Mines | Build established: Mutant 6567 | -9/Mines | Met a Derelict who couldn't figure out how to use a Trap Extractor 6661 | -9/Mines | Discovered new exit (range 6) 6728 | -9/Mines | A weapon hastily lodged in a ceiling crevice suddenly fell to the ground 7065 | -9/Mines | Learned Materials stockpile data 7128 | -9/Mines | Discovered new exit (range 9) 7290 | -9/Mines | Entered Materials 7290 | -8/Materials | Evolved 2 slots: Propulsion x1, Utility x1 7851 | -8/Materials | Identified Exp. Sensor Array 8697 | -8/Materials | Discovered new exit (range 15) 9266 | -8/Materials | Discovered new exit (range 14) 9747 | -8/Materials | Repaired Gauss Cannon? 10046 | -8/Materials | Central database locked down 11489 | -8/Materials | Repaired Hrd. Light Armor Plating 11624 | -8/Materials | Build established: Gladiator 11952 | -8/Materials | Build established: Mutant 12335 | -8/Materials | Build established: Scavenger-Mutant 12508 | -8/Materials | Entered Factory 12508 | -7/Factory | Evolved 2 slots: Propulsion x2 12556 | -7/Factory | Discovered new exit (range 14) 12584 | -7/Factory | Identified exit to Storage 12809 | -7/Factory | Build established: Sprinter 13018 | -7/Factory | Entered Storage 13137 | -7/Storage | Used back door to open Recycling access 13137 | -7/Storage | Discovered new exit (range 4) 13137 | -7/Storage | Identified exit to Recycling 13138 | -7/Storage | Entered Recycling 13377 | -7/Recycling | Discovered new exit (range 8) 13402 | -7/Recycling | Scanned before Scraplab entrance 13407 | -7/Recycling | Entered Scraplab 13410 | -7/Recycling | Discovered new exit (range 3) 13411 | -7/Recycling | Identified exit to Scraptown 13411 | -7/Recycling | Entered Scraptown 13446 | -7/Scraptown | Heard Great Nut preacher, LISTEN AND RECITE! 13448 | -7/Scraptown | Visited Comm Corps 13458 | -7/Scraptown | Visited Red Mages 13467 | -7/Scraptown | Visited Spacefarers 13479 | -7/Scraptown | Visited CR-KLE's Repair Center 13485 | -7/Scraptown | Visited Cave Peace 13487 | -7/Scraptown | Visited Awakened 13491 | -7/Scraptown | Visited Cyclists 13495 | -7/Scraptown | Visited UFD Registry 13495 | -7/Scraptown | Registered with UFD as "Slugbrain" 13501 | -7/Scraptown | Entered Cyclist Reading Room 13517 | -7/Scraptown | Discovered new exit (range 11) 13581 | -7/Scraptown | Visited Modified Component R&D 13589 | -7/Scraptown | Visited Science Testing Area 13594 | -7/Scraptown | Visited Analyses Database 13603 | -7/Scraptown | Visited Curators Association 13611 | -7/Scraptown | Visited Scrap Suit Storage 13616 | -7/Scraptown | Visited Scrapoid Pod Storage 13620 | -7/Scraptown | Visited Observation Area 13626 | -7/Scraptown | Visited Science Guys 13635 | -7/Scraptown | Visited Abandonware Association 13637 | -7/Scraptown | Learned abandonware demo "REPAIR.EXE" 13663 | -7/Scraptown | Visited DA-N13 Charitable Foundation 13666 | -7/Scraptown | Found DCF Scrap (29 items) 13769 | -7/Scraptown | CR-KLE repaired 3 parts 13888 | -7/Scraptown | Met Optimus 13888 | -7/Scraptown | Accepted into 0bPrime 13903 | -7/Scraptown | Discovered new exit (range 3) 13903 | -7/Scraptown | Identified exit to Factory 13904 | -7/Scraptown | Entered Factory 13904 | -5/Factory | Evolved 4 slots: Power x1, Propulsion x1, Utility x2 14036 | -5/Factory | Identified exit to Upper Caves 14127 | -5/Factory | Found Imp. Powered Armor 14181 | -5/Factory | Loaded intel: 8 recycling unit locations 14204 | -5/Factory | Build established: Hacker-Sprinter 14376 | -5/Factory | Discovered new exit (range 15) 14421 | -5/Factory | Fabricated Imp. Cesium-ion Thruster (x1) 14426 | -5/Factory | Learned location of Protoforge (-2) 14452 | -5/Factory | Discovered new exit (range 12) 14460 | -5/Factory | Identified exit to Factory 14557 | -5/Factory | Entered Upper Caves 14721 | -5/Upper Caves | Discovered new exit (range 15) 14723 | -5/Upper Caves | Learned location of 1 exit from Factory 14725 | -5/Upper Caves | Identified exit to Upper Caves 14743 | -5/Upper Caves | Entered another Upper Caves area 14765 | -5/Upper Caves | Learned Factory security intel 15054 | -5/Upper Caves | Discovered new exit (range 9) 15058 | -5/Upper Caves | Identified exit to Warlord 15086 | -5/Upper Caves | Learned Factory stockpile data 15170 | -5/Upper Caves | Entered Warlord 15196 | -5/Warlord | Received a Watcher feed algorithm from an ecstatic Tinkerer 15270 | -5/Warlord | Visited the Vortex Lab 15271 | -5/Warlord | Found Prototype Energy Cannon 15271 | -5/Warlord | Identified Vortex Cannon 15274 | -5/Warlord | Warlord's base attacked by MAIN.C 15295 | -5/Warlord | Rebuked by Warlord 15324 | -5/Warlord | Found Prototype Device 15324 | -5/Warlord | Identified Exp. Phase Shifter 15377 | -5/Warlord | Found Prototype Reactor 15392 | -5/Warlord | Identified Vortex Chain Reactor 15583 | -5/Warlord | Lost 3 allies 15624 | -5/Warlord | Warlord forces counterattacked 15676 | -5/Warlord | Spotted Striker 15739 | -5/Warlord | Spotted Striker 15768 | -5/Warlord | Discovered new exit (range 14) 15770 | -5/Warlord | Identified exit to Proximity Caves 15772 | -5/Warlord | Entered Proximity Caves 15800 | -4/Proximity Caves | Lost 18 allies 15855 | -4/Proximity Caves | Discovered exit to Factory (range 9) 15868 | -4/Proximity Caves | Entered Factory 15868 | -4/Factory | Evolved 2 slots: Propulsion x1, Utility x1 15869 | -4/Factory | Identified exit to Upper Caves 16071 | -4/Factory | Loaded intel: 8 recycling unit locations 16119 | -4/Factory | Manually triggered Chute Trap 16119 | -4/Factory | Sucked down chute 16119 | -4/Factory | Entered Waste 16120 | -4/Waste | Joined by Warlord forces that had cleared the area 16159 | -4/Waste | Discovered new exit (range 16) 16174 | -4/Waste | Identified exit to Factory 16174 | -4/Waste | Entered Factory 16174 | -4/Factory | Accompanied by 3 allies 16206 | -4/Factory | Murdered 3 allies 16276 | -4/Factory | Loaded intel: 8 recycling unit locations 16305 | -4/Factory | Discovered new exit (range 8) 16306 | -4/Factory | Identified exit to Research 16765 | -4/Factory | Entered Upper Caves 16927 | -4/Upper Caves | Discovered new exit (range 7) 16930 | -4/Upper Caves | Identified exit to Upper Caves 16972 | -4/Upper Caves | Entered another Upper Caves area 16974 | -4/Upper Caves | Discovered exit to Research (range 13) 17209 | -4/Upper Caves | Discovered new exit (range 4) 17210 | -4/Upper Caves | Identified exit to Zhirov 17224 | -4/Upper Caves | Entered Zhirov 17224 | -4/Zhirov | Discovered new exit (range 3) 17229 | -4/Zhirov | Met Zhirov 17235 | -4/Zhirov | Zhirov requested help retrieving the SGEMP Prototype 17239 | -4/Zhirov | Found Alien Artifact 17239 | -4/Zhirov | Identified Integrated Reactor 17239 | -4/Zhirov | Installed Integrated Reactor, increased core energy generation (+10) 17289 | -4/Zhirov | Found Alien Artifact 17302 | -4/Zhirov | Identified exit to Proximity Caves 17306 | -4/Zhirov | Entered Proximity Caves 17354 | -3/Proximity Caves | Destroyed 7 combat bots 17413 | -3/Proximity Caves | Attracted the attention of an 0b10 checkpoint 17513 | -3/Proximity Caves | Found Alien Artifact 17513 | -3/Proximity Caves | Identified Core Expander 17513 | -3/Proximity Caves | Installed Core Expander, added new Utility slot 17592 | -3/Proximity Caves | Discovered exit to Research (range 11) 17694 | -3/Proximity Caves | Attracted the attention of an 0b10 base 18099 | -3/Proximity Caves | Entered Research 18099 | -3/Research | Evolved 2 slots: Utility x2 18138 | -3/Research | Identified exit to Armory 18138 | -3/Research | Identified exit to Testing 18337 | -3/Research | Loaded intel: 5 recycling unit locations 18359 | -3/Research | Entered Testing 18373 | -3/Testing | Found Prototype Energy Gun 18373 | -3/Testing | Identified Tachyon Dispersion Ray 18418 | -3/Testing | Identified Transdimensional Reconstructor 18418 | -3/Testing | Warped through subspace 18499 | -3/Testing | Repaired Imp. Propulsion Shielding 18503 | -3/Testing | Discovered new exit (range 15) 18557 | -3/Testing | Found Prototype Protection 18557 | -3/Testing | Identified Centrium Heavy Armor Plating 18588 | -3/Testing | Spotted PH-ROHMVONAB7 18644 | -3/Testing | Found Prototype Protection 18645 | -3/Testing | Identified Med. Regenerative Plating 18648 | -3/Testing | Found Prototype Protection 18654 | -3/Testing | Identified Lgt. Regenerative Plating 18658 | -3/Testing | Identified exit to Research 18658 | -3/Testing | Entered Research 18658 | -2/Research | Evolved 2 slots: Utility x1, Weapon x1 18659 | -2/Research | Identified exit to Quarantine 18794 | -2/Research | Unchained authorized (DW-4LL) 18942 | -2/Research | DW-4LL burst out of a wall 19008 | -2/Research | DW-4LL burst out of a wall 19097 | -2/Research | DW-4LL burst out of a wall 19153 | -2/Research | Entered Quarantine 19226 | -2/Quarantine | Found Alien Artifact 19227 | -2/Quarantine | Discovered new exit (range 9) 19321 | -2/Quarantine | Repaired Cld. Impulse Thruster 19323 | -2/Quarantine | Unchained authorized (DW-4LL) 19364 | -2/Quarantine | Spotted Fortress 19377 | -2/Quarantine | Discovered new exit (range 5) 19377 | -2/Quarantine | Discovered new exit (range 6) 19377 | -2/Quarantine | Identified exit to Protoforge 19378 | -2/Quarantine | Entered Protoforge 19463 | -2/Protoforge | Identified exit to Access 19582 | -2/Protoforge | Spotted Hotshot 19609 | -2/Protoforge | Spotted Decapitator 19612 | -2/Protoforge | Spotted Decapitator 19632 | -2/Protoforge | Destroyed Decapitator 19634 | -2/Protoforge | Destroyed Decapitator 19656 | -2/Protoforge | Spotted Hotshot 19656 | -2/Protoforge | Spotted B-90 Cyclops 19657 | -2/Protoforge | Superfortress began startup sequence 19741 | -2/Protoforge | Found Cep. Zero-point Core 19784 | -2/Protoforge | Spotted EXE-6 19796 | -2/Protoforge | Spotted Decapitator 19803 | -2/Protoforge | UFD initiated attack on Protoforge 19803 | -2/Protoforge | Loaded intel: 3 recycling unit locations 19817 | -2/Protoforge | Spotted EXE-6 19839 | -2/Protoforge | Optimus greeted in Protoforge 19840 | -2/Protoforge | Found Prototype Processor 19840 | -2/Protoforge | Identified Exp. Core Analyzer 19864 | -2/Protoforge | Found Prototype Processor 19864 | -2/Protoforge | Identified Exp. Armor Integrity Analyzer 19896 | -2/Protoforge | P-80 Master assimilated allied 02F01-D 19898 | -2/Protoforge | Spotted AP7-3 19899 | -2/Protoforge | Spotted AP7-3 19903 | -2/Protoforge | Fabricated Imp. Propulsion Shielding? 19903 | -2/Protoforge | Found Prototype Ballistic Gun 19904 | -2/Protoforge | Found Prototype Ballistic Gun 19905 | -2/Protoforge | Identified Cep. XC Strikerail (x2) 19911 | -2/Protoforge | Found Exp. Kinecellerator 19952 | -2/Protoforge | Fabricated Exp. Q-thruster? 19962 | -2/Protoforge | Found Cep. XC Strikerail 19977 | -2/Protoforge | Met 7R-MNS 19993 | -2/Protoforge | Spotted Striker 20002 | -2/Protoforge | Spotted Striker 20011 | -2/Protoforge | Found Cep. XC Strikerail 20013 | -2/Protoforge | Spotted Striker 20015 | -2/Protoforge | Spotted Striker 20022 | -2/Protoforge | Destroyed Striker 20028 | -2/Protoforge | Destroyed Striker 20055 | -2/Protoforge | Forge Plexus network access discovered 20056 | -2/Protoforge | Lost 15 allies 20088 | -2/Protoforge | Destroyed 16 combat bots 20123 | -2/Protoforge | Build established: Scavenger-Sprinter 20128 | -2/Protoforge | Spotted Executioner 20135 | -2/Protoforge | Spotted Striker 20138 | -2/Protoforge | Spotted Executioner 20138 | -2/Protoforge | Spotted Executioner 20162 | -2/Protoforge | Spotted Hotshot 20167 | -2/Protoforge | Spotted Hotshot 20167 | -2/Protoforge | Destroyed Hotshot 20172 | -2/Protoforge | Lost 4 allies 20174 | -2/Protoforge | Destroyed Hotshot 20230 | -2/Protoforge | Spotted Striker 20249 | -2/Protoforge | Spotted Executioner 20250 | -2/Protoforge | Spotted Overlord 20251 | -2/Protoforge | UFD reported confirmed Drillbomb installation 20281 | -2/Protoforge | Spotted Striker 20282 | -2/Protoforge | Spotted Striker 20289 | -2/Protoforge | Destroyed Striker 20295 | -2/Protoforge | Spotted Striker 20298 | -2/Protoforge | Found 0bPrime Scrap Suit 20302 | -2/Protoforge | Spotted Executioner 20317 | -2/Protoforge | Spotted Executioner 20330 | -2/Protoforge | Spotted Striker 20338 | -2/Protoforge | Lost 11 allies 20372 | -2/Protoforge | Spotted Striker 20374 | -2/Protoforge | Spotted Striker 20376 | -2/Protoforge | Spotted Striker 20377 | -2/Protoforge | Destroyed Striker 20378 | -2/Protoforge | Spotted Striker 20383 | -2/Protoforge | UFD reported confirmed Drillbomb installation 20392 | -2/Protoforge | Destroyed Striker 20395 | -2/Protoforge | Spotted Striker 20398 | -2/Protoforge | Spotted Striker 20401 | -2/Protoforge | Destroyed Striker 20438 | -2/Protoforge | Lost 8 allies 20452 | -2/Protoforge | Destroyed 11 combat bots 20490 | -2/Protoforge | Spotted Executioner 20491 | -2/Protoforge | Spotted Executioner 20498 | -2/Protoforge | Spotted Executioner 20498 | -2/Protoforge | Spotted Executioner 20550 | -2/Protoforge | UFD reported confirmed Drillbomb installation 20564 | -2/Protoforge | Spotted Striker 20568 | -2/Protoforge | Spotted Striker 20571 | -2/Protoforge | Lost 6 allies 20573 | -2/Protoforge | Destroyed Striker 20599 | -2/Protoforge | Spotted Striker 20604 | -2/Protoforge | Spotted Striker 20608 | -2/Protoforge | Destroyed Striker 20613 | -2/Protoforge | UFD reported confirmed Drillbomb installation 20652 | -2/Protoforge | Destroyed 8 combat bots 20675 | -2/Protoforge | Spotted Striker 20676 | -2/Protoforge | Spotted Striker 20677 | -2/Protoforge | Destroyed Striker 20681 | -2/Protoforge | Spotted Executioner 20686 | -2/Protoforge | Spotted Striker 20724 | -2/Protoforge | Lost 5 allies 20738 | -2/Protoforge | Destroyed 8 combat bots 20769 | -2/Protoforge | UFD reported confirmed Drillbomb installation 20770 | -2/Protoforge | Spotted Striker 20771 | -2/Protoforge | Spotted Striker 20775 | -2/Protoforge | Destroyed Striker 20779 | -2/Protoforge | Spotted Executioner 20780 | -2/Protoforge | Spotted Executioner 20782 | -2/Protoforge | Destroyed Striker 20819 | -2/Protoforge | Destroyed 8 combat bots 20826 | -2/Protoforge | Lost 4 allies 20828 | -2/Protoforge | Spotted Executioner 20832 | -2/Protoforge | Spotted Striker 20838 | -2/Protoforge | Destroyed Striker 20865 | -2/Protoforge | Spotted Hotshot 20865 | -2/Protoforge | Spotted Executioner 20866 | -2/Protoforge | Spotted Executioner 20867 | -2/Protoforge | Spotted Hotshot 20872 | -2/Protoforge | Destroyed Hotshot 20883 | -2/Protoforge | Spotted Executioner 20884 | -2/Protoforge | Spotted Striker 20914 | -2/Protoforge | Destroyed 7 combat bots 20927 | -2/Protoforge | Lost 4 allies 20953 | -2/Protoforge | Spotted Striker 20953 | -2/Protoforge | Spotted Striker 20953 | -2/Protoforge | Spotted Executioner 20953 | -2/Protoforge | Spotted Executioner 20974 | -2/Protoforge | Destroyed Striker 20987 | -2/Protoforge | UFD reported confirmed Drillbomb installation 21039 | -2/Protoforge | UFD reported confirmed Drillbomb installation 21073 | -2/Protoforge | Spotted Executioner 21082 | -2/Protoforge | Spotted Executioner 21082 | -2/Protoforge | Spotted Striker 21096 | -2/Protoforge | Destroyed Executioner 21102 | -2/Protoforge | Destroyed Striker 21167 | -2/Protoforge | Lost 9 allies 21174 | -2/Protoforge | Destroyed 8 combat bots 21180 | -2/Protoforge | Spotted Executioner 21184 | -2/Protoforge | Spotted Striker 21195 | -2/Protoforge | Destroyed Striker 21207 | -2/Protoforge | Spotted Striker 21208 | -2/Protoforge | Spotted Executioner 21212 | -2/Protoforge | Destroyed Striker 21234 | -2/Protoforge | Spotted Executioner 21238 | -2/Protoforge | Spotted Executioner 21257 | -2/Protoforge | Destroyed Executioner 21278 | -2/Protoforge | Spotted Striker 21290 | -2/Protoforge | Lost 5 allies 21290 | -2/Protoforge | Spotted Striker 21295 | -2/Protoforge | Spotted Executioner 21299 | -2/Protoforge | Destroyed Striker 21320 | -2/Protoforge | Destroyed Executioner 21321 | -2/Protoforge | Spotted Striker 21326 | -2/Protoforge | Destroyed Striker 21365 | -2/Protoforge | Spotted Executioner 21365 | -2/Protoforge | Spotted Executioner 21365 | -2/Protoforge | Spotted Striker 21367 | -2/Protoforge | Spotted Striker 21368 | -2/Protoforge | Destroyed Executioner 21379 | -2/Protoforge | Destroyed Striker 21381 | -2/Protoforge | Destroyed Executioner 21389 | -2/Protoforge | Spotted Striker 21389 | -2/Protoforge | Spotted Striker 21404 | -2/Protoforge | Destroyed Striker 21437 | -2/Protoforge | Destroyed 15 combat bots 21438 | -2/Protoforge | Lost 9 allies 21441 | -2/Protoforge | Found UFD Drillbomb 21461 | -2/Protoforge | Installed UFD Drillbomb at designated target 21461 | -2/Protoforge | UFD reported confirmed Drillbomb installation 21468 | -2/Protoforge | Spotted Executioner 21479 | -2/Protoforge | Spotted Executioner 21479 | -2/Protoforge | Spotted Executioner 21495 | -2/Protoforge | Spotted Executioner 21496 | -2/Protoforge | Spotted Executioner 21556 | -2/Protoforge | Lost 7 allies 21639 | -2/Protoforge | Spotted Decapitator 21639 | -2/Protoforge | Spotted Decapitator 21639 | -2/Protoforge | Spotted Decapitator 21639 | -2/Protoforge | Spotted Decapitator 21639 | -2/Protoforge | Spotted Decapitator 21639 | -2/Protoforge | Spotted Decapitator 21652 | -2/Protoforge | Spotted Immortal 21750 | -2/Protoforge | Found Cep. Gyrokinetic System 21835 | -2/Protoforge | Found Cep. Biometal Exoskeleton 21914 | -2/Protoforge | Destroyed Decapitator 21921 | -2/Protoforge | Destroyed Decapitator 21932 | -2/Protoforge | Destroyed Decapitator 21932 | -2/Protoforge | Destroyed Decapitator 21939 | -2/Protoforge | Destroyed Decapitator 21943 | -2/Protoforge | Destroyed Decapitator 22034 | -2/Protoforge | Build established: Scavenger-Gunner 22078 | -2/Protoforge | Found Cep. XC Strikerail 22082 | -2/Protoforge | Found Cep. XC Strikerail 22085 | -2/Protoforge | Found Cep. Smart ZDS 22089 | -2/Protoforge | Found Cep. RG22 Armor 22191 | -2/Protoforge | Spotted V430-c 22191 | -2/Protoforge | Spotted V778-t 22214 | -2/Protoforge | Destroyed V778-t 22253 | -2/Protoforge | Destroyed V430-c 22281 | -2/Protoforge | Lost 4 parts (1n1u2w) 22326 | -2/Protoforge | Spotted Immortal 22379 | -2/Protoforge | Destroyed Immortal 22418 | -2/Protoforge | Destroyed Immortal 22422 | -2/Protoforge | Found Exp. Cloaking Device 22424 | -2/Protoforge | Found Cep. Antimissile System 22530 | -2/Protoforge | Found Cep. Antigrav Storage Unit 22532 | -2/Protoforge | Found Cep. NT7 Matterbank 22534 | -2/Protoforge | Found Cep. Chromion Battery 22536 | -2/Protoforge | Found Cep. NT7 Matterbank 22540 | -2/Protoforge | Found Cep. Matter Streamer 22553 | -2/Protoforge | Spotted V233-f 22663 | -2/Protoforge | Found Cep. Rapid Grenade Launcher 22741 | -2/Protoforge | Build established: Scavenger-Tank 22847 | -2/Protoforge | Spotted Immortal 22847 | -2/Protoforge | Spotted Immortal 22856 | -2/Protoforge | Spotted Decapitator 22856 | -2/Protoforge | Spotted Decapitator 22856 | -2/Protoforge | Spotted Decapitator 22856 | -2/Protoforge | Spotted Decapitator 22866 | -2/Protoforge | Destroyed Decapitator 22874 | -2/Protoforge | Destroyed Decapitator 22880 | -2/Protoforge | Destroyed Decapitator 22880 | -2/Protoforge | Destroyed Decapitator 23079 | -2/Protoforge | Scanned by Researcher 23128 | -2/Protoforge | Found Cep. RG22 Armor 23132 | -2/Protoforge | Found Cep. Reaction Jets 23136 | -2/Protoforge | Found Cep. Phase Shift Module 23147 | -2/Protoforge | Found Exp. EM Disruption Field 23192 | -2/Protoforge | Found Crosscalibrator 23241 | -2/Protoforge | Found Cep. Zero-point Core 23260 | -2/Protoforge | Found Faulty Cep. Zero-point Core 23388 | -2/Protoforge | Spotted Decapitator 23388 | -2/Protoforge | Spotted Decapitator 23402 | -2/Protoforge | Destroyed Decapitator 23433 | -2/Protoforge | Spotted V316-x 23437 | -2/Protoforge | Destroyed V316-x 23438 | -2/Protoforge | Spotted V101-y 23464 | -2/Protoforge | Destroyed V101-y 23488 | -2/Protoforge | Found Centrium Heavy Armor Plating 23533 | -2/Protoforge | Found Cep. Lightning Penetrator 23537 | -2/Protoforge | Found Faulty Cep. Lightning Penetrator 23550 | -2/Protoforge | Found Faulty Cep. Lightning Penetrator 23562 | -2/Protoforge | Found Faulty Cep. Heavy Railcannon 23564 | -2/Protoforge | Found Faulty Cep. Helical Railcannon 23572 | -2/Protoforge | Found Faulty Cep. XC Strikerail 23615 | -2/Protoforge | Found Faulty Cep. Helical Railcannon 23725 | -2/Protoforge | Found Cep. XC Strikerail 23741 | -2/Protoforge | Found Cep. Plasma Driver 23744 | -2/Protoforge | Found Cep. Plasma Driver 23759 | -2/Protoforge | Found Cep. XC Strikerail 23854 | -2/Protoforge | Destroyed Immortal 23893 | -2/Protoforge | Destroyed Immortal 23920 | -2/Protoforge | Found Cep. Core Shell 23962 | -2/Protoforge | Found Faulty Cep. RG22 Armor 23969 | -2/Protoforge | Found Cep. Phase Shift Module 24038 | -2/Protoforge | Found Faulty Exp. Active Sensor Suite 24043 | -2/Protoforge | Found Faulty Exp. Active Sensor Suite 24505 | -2/Protoforge | Found Cep. Combat Aerolev Unit 24524 | -2/Protoforge | Found Cep. Gyrokinetic System 24528 | -2/Protoforge | Found Cep. Gyrokinetic System 24532 | -2/Protoforge | Found Faulty Cep. Combat Aerolev Unit 24649 | -2/Protoforge | Additional patrols dispatched to research labs 24687 | -2/Protoforge | Found Cep. Weapon Articulator 24692 | -2/Protoforge | Spotted 02F53-K 24795 | -2/Protoforge | Spotted Executioner 24796 | -2/Protoforge | Spotted Striker 24829 | -2/Protoforge | Destroyed 8 combat bots 24830 | -2/Protoforge | Destroyed Executioner 24841 | -2/Protoforge | Spotted Executioner 24842 | -2/Protoforge | Spotted Striker 24843 | -2/Protoforge | Destroyed Executioner 24848 | -2/Protoforge | Lost 4 allies 24862 | -2/Protoforge | Found Adv. Kinecellerator 24868 | -2/Protoforge | Spotted Striker 24870 | -2/Protoforge | Spotted Striker 24881 | -2/Protoforge | Destroyed Striker 24907 | -2/Protoforge | Spotted Executioner 24921 | -2/Protoforge | Spotted Executioner 24923 | -2/Protoforge | Core integrity fell below 50% 24934 | -2/Protoforge | Destroyed Executioner 24956 | -2/Protoforge | Destroyed Executioner 24963 | -2/Protoforge | Spotted Executioner 24964 | -2/Protoforge | Lost 5 allies 24977 | -2/Protoforge | Destroyed 14 combat bots 24978 | -2/Protoforge | Destroyed Executioner 24981 | -2/Protoforge | Spotted Striker 24983 | -2/Protoforge | Spotted Executioner 24983 | -2/Protoforge | Spotted Striker 24984 | -2/Protoforge | Destroyed Executioner 24989 | -2/Protoforge | Spotted Striker 24990 | -2/Protoforge | Destroyed Striker 24993 | -2/Protoforge | Destroyed Striker 25000 | -2/Protoforge | Spotted Striker 25001 | -2/Protoforge | Spotted Striker 25013 | -2/Protoforge | Destroyed Striker 25068 | -2/Protoforge | Spotted Executioner 25068 | -2/Protoforge | Spotted Striker 25068 | -2/Protoforge | Destroyed Striker 25068 | -2/Protoforge | Destroyed Executioner 25085 | -2/Protoforge | Spotted Striker 25085 | -2/Protoforge | Spotted Striker 25087 | -2/Protoforge | Found UFD Drillbomb 25090 | -2/Protoforge | Installed UFD Drillbomb at designated target 25090 | -2/Protoforge | UFD reported confirmed Drillbomb installation 25096 | -2/Protoforge | Destroyed 22 combat bots 25102 | -2/Protoforge | Lost 12 allies 25153 | -2/Protoforge | Spotted Striker 25153 | -2/Protoforge | Destroyed Executioner 25154 | -2/Protoforge | Spotted Executioner 25154 | -2/Protoforge | Spotted Executioner 25155 | -2/Protoforge | Destroyed Executioner 25157 | -2/Protoforge | Destroyed Executioner 25178 | -2/Protoforge | Destroyed 11 combat bots 25178 | -2/Protoforge | Spotted Striker 25178 | -2/Protoforge | Spotted Executioner 25183 | -2/Protoforge | Destroyed Striker 25185 | -2/Protoforge | Destroyed Executioner 25200 | -2/Protoforge | Installed UFD Drillbomb at designated target 25200 | -2/Protoforge | UFD reported confirmed Drillbomb installation 25201 | -2/Protoforge | UFD began Drillbomb countdown 25206 | -2/Protoforge | Destroyed 7 combat bots 25207 | -2/Protoforge | Spotted Executioner 25207 | -2/Protoforge | Spotted Executioner 25209 | -2/Protoforge | Lost 3 allies 25209 | -2/Protoforge | Spotted Executioner 25215 | -2/Protoforge | Destroyed Executioner 25223 | -2/Protoforge | Build established: Sprinter 25301 | *** | Defending 0bPrime! Last Messages --------------- 25295_ N-04 Retriever inserts Imp. Antigrav System into Forge Plexus. 25296_ 0bP_NET: But Derelicts everywhere will know and remember the exploits and sacrifices of our great leader. 25296_ N-04 Retriever inserts Ovr. Flexi-carbon Leg into Forge Plexus. 25297_ 0bP_NET: For he was our leader, if not in title then in vision and deeds. 25297_ N-04 Retriever inserts Ovr. Beamcaster into Forge Plexus. 25298_ 0bP_NET: Rest in scrap, dear Optimus. 25298_ N-04 Retriever inserts Lgt. Deuterium Engine into Forge Plexus. 25299_ 0bP_NET: It is time for us to embark on a new adventure. 25300_ 0bP_NET: One in which we explore the true meaning of 0bPrime. [Achievement: Punisher] [Achievement: Robotopia] Map ----- +----------------------------------------------------+ | """"""""""""""""""""""""""""" % %%%%%% !! #?? | | """"""""""""""""""""""""""""" %%%%%"%[% !/* #?? | | """"""""""""""""""""""""""""" %%% %!%%% =[* #?? | | """"""""""""""""""""""""""""" % %% %% %!!= ##? | | """""""""""""""""""""""""""""%% %% =*% /!! %#? | | " """""""""""""""""""""""""""""%% %%"%%!!!!%/ % #? | | % """""""""""""""""""""""""""""%"%E !=%]![*! %##? | | """"""""""""""""""""""""""" %%SS![=%%[=!!! #?? | | """"""""""""""""""""""""""" %SS=%!!!%*=%[ #?? | | %""""""""""""""""""""""""""" %E!s=%%=|!!**! #?? | | % % """"""""""""""""""""""""" *!![*=/=!![=! #?? | | %""""""""""""""""""""""" % !=![%*!/!=%!!!#?? | | """"""""""""""""""""" %[!!*=!![[=%[**#?? | | "% """""""""""""""""""% %!!=/=!%[!%*!![!#?? | | "% % """"""""""""""""" !!=*[!m*!=%=*=*#?? | | % % %""""""""""""""" !*[%%%!=!%[=% %#?? | | % % """"""""" % %==![*!!%%! !#?? | | % % n % s SS E %*! *!!=[%[*#?? | | % " %" "" %j SS % % = =!=![=]!#?? | | % % % % % E== %% !|![% !==!=!!!!### | | " n s % !!=![%*!%*% *! " =![[![A%|[# | | %!! "% "ss%=![==" [=!=!% *%!E " !!*=%!!%" | | %*%%%%=! "%!j[*|!% " % !=s | SS !!%!!%!!" | | !!%!=!*== *=*[[![!" *% s SSE !!!* "" | | %[!%*[[ / [= " [ EE" "" " *] <" | | *!!%!=!* " " "@ " "" <"# | | *%[%%!" "= "" """ " " " ### | | *![![ " %! " """" " " #?? | | !%%= % = " " #?? | | % % " """""""" """ #?? | | % """ """" % """ #?? | | " """"""""" " " " "" """#?? | | ##################################+++###########?? | | ?????????????????????????????#"" ""#???????? | | ???????????????????????????###" "###?????? | | ???????????????????????????#"" ""#?????? | | ???????????????????????????#"" ""#?????? | | ???????????????????????????#"" ""#?????? | | ???????????????????????????#"Y Y"#?????? | | ???????????????????????????#"" ""#?????? | | ???????????????????????????#"" ""#?????? | | ???????????????????????????#"" ""#?????? | | ???????????????????????????###" "###?????? | | ?????????????????????????????#"" ""#???????? | | ?????????????????????????????###"""Y"""###???????? | | ???????????????????????????????#"""""""#?????????? | | ???????????????????????????????#########?????????? | | ?????????????????????????????????????????????????? | | ?????????????????????????????????????????????????? | | ?????????????????????????????????????????????????? | +----------------------------------------------------+ Best States ------------- Heat Dissipation 75 Energy Generation 57 Energy Capacity 1520 Matter Stores 1050 Matter Capacity 1050 Sight Range 23 Robot Scan Range 20 Terrain Scan Density 10 ECM Strength 1 Jamming Range 16 Cloak Strength 4 Armor Coverage 750 Core Shielding 90 Propulsion Shielding 66 Point Defense Rating 480 Melee Speed Boost 30 Phase Shifting 25 Evasion (%) 109 Targeting Accuracy 30 Melee Accuracy 8 Core Analysis 8 Recoil Reduction 4 Matter Filtering 50 Kinecelleration 66 Offensive Hacking 42 Defensive Hacking 12 Authchip Count 1 Item Schematics ----------------- Huge Storage Unit | -10/Materials | Hacked Imp. VTOL Module | -9/Materials | Scanalyzed Imp. Propulsion Shielding | -8/Materials | Hacked Powered Armor | -7/Recycling | Hacked Imp. Cesium-ion Thruster | -5/Factory | Scanalyzed Assault Drone Bay | -4/Zhirov | Free Exp. Heat Sink | -4/Zhirov | Free Exp. Optical Array | -4/Zhirov | Free Imp. Arc Thrower | -4/Zhirov | Free Nanosword | -3/Testing | Scanalyzed Enh. Armored Medium Treads | -3/Testing | Archive Hvy. Proton Cannon | -3/Testing | Archive Exp. Thermal Shield | -3/Testing | Archive Hvy. Regenerative Plating | -3/Testing | Hacked Graviton Cannon | -2/Protoforge | Archive Enh. Biometal Leg | -2/Protoforge | Archive Exp. Melee Analysis Suite | -2/Protoforge | Archive Exp. Cooling System | -2/Protoforge | Archive Lgt. Antimatter Cannon | -2/Protoforge | Archive Exp. Hacking Suite | -2/Protoforge | Archive Exp. Shield Generator | -2/Protoforge | Archive Adv. Matter Compressor | -2/Protoforge | Archive Exp. Reaction Control System | -2/Protoforge | Archive Com. Mass Driver | -2/Protoforge | Archive Robot Schematics ------------------ E-15 Imp | -2/Protoforge | Archive R-10 Processor | -2/Protoforge | Archive A-27 Freighter | -2/Protoforge | Archive Fabricated ------------ Imp. Cesium-ion Thruster | x1 | -5/Factory | Authchip Imp. Propulsion Shielding | x2 | -2/Protoforge Exp. Q-thruster | x1 | -2/Protoforge | Preloaded Repaired ---------- Imp. VTOL Module | 99% | -9/Materials | Broken Gauss Cannon | 9% | -8/Materials Hrd. Light Armor Plating | 54% | -8/Materials Imp. Propulsion Shielding | 12% | -3/Testing Cld. Impulse Thruster | 56% | -2/Quarantine Studied --------- Impulse Thruster Array | -4/Factory | Hacked Lgt. Fission Core | -4/Factory | Hacked Mic. Fission Core | -3/Testing | Hacked Alien Tech Used ----------------- Integrated Reactor Core Expander Transdimensional Reconstructor Achievements -------------- Analysis Probe Anti-science Crusade Bob, First Of His Name Civilization 2243 Fine I'll Do It Myself Hulk Smash Inventory(Loot) Junior Dev Link The Feds Network Effect Not Today, Chutes Punisher Robotopia Sprinter Universal Adapter We Are One Worth The Wait You May Approach The Wall Challenges ------------ None Game ------ Seed DefenseSupersonicStreamer Manual? 0 Play Time 10:02:06 Cumulative 229.4 hours Start 2025.10.30 @ 14:40:30 End 2025.11.01 @ 20:56:58 Sessions 15 Manual Loads 0 Difficulty Rogue Special Mode None Game No. 67 Rogue 61 Adventurer 0 Explorer 6 Win Type 9 Total 13 Types 6/0/2/1/1/0/1/1/0/1 Lore% 78 Gallery% 72 Achievement% 52 Wizard Run 0 Options --------- Layout 1 ASCII 0 Keyboard 0 Movement Mouse Keybinds 0 Fullscreen 2 Font 24/Smallcaps Map View 50x35 Zoom Use 0% Tactical HUD 1 Map Filters NONE Filters NONE Steam 1 RUN: 44ed7b2f-3379-46b5-80b1-838632f9c624